DEPARTMENTAL FAMILY,ENTITY,DATE,EXPENSE AREA,EXPENSE TYPE,SUPPLIER,TRANSACTION NUMBER,AMOUNT
Ministry of Justice,HM Courts Service,01-Feb-11,GZ999-North West Region,610400-Debtors <1 year - Prepayments & Accrued Income,MANCHESTER CITY COUNCIL,1478965,"92,731.89"
Ministry of Justice,HM Courts Service,01-Feb-11,GZ999-North West Region,610400-Debtors <1 year - Prepayments & Accrued Income,MANCHESTER CITY COUNCIL,1478965,"77,185.42"
Ministry of Justice,HM Courts Service,02-Feb-11,AG999-Estates Directorate HMCS HQ,222001-Maintenance,DEVELOPMENT PLANNING PARTNERSHIP,1481302,"49,350.00"
Ministry of Justice,HM Courts Service,02-Feb-11,BZ999-London Region,222001-Maintenance,NORLAND MANAGED SERVICES LTD,1481794,"123,150.00"
Ministry of Justice,HM Courts Service,02-Feb-11,BZ999-London Region,222001-Maintenance,MITIE TECHNICAL FACILITIES MANAGEMENT LTD,1481743,"119,782.00"
Ministry of Justice,HM Courts Service,02-Feb-11,BZ999-London Region,265000-IT & Telecommunications,INFORM COMMUNICATIONS PLC,1481555,"132,782.00"
Ministry of Justice,HM Courts Service,02-Feb-11,BZ999-London Region,532000-Tangible GBV - Additions,TURNER & TOWNSEND PROJECT MANAGEMENT,1482789,"72,554.00"
Ministry of Justice,HM Courts Service,02-Feb-11,BZ999-London Region,532000-Tangible GBV - Additions,CHILLMECH LTD,1481200,"44,720.00"
Ministry of Justice,HM Courts Service,02-Feb-11,BZ999-London Region,532000-Tangible GBV - Additions,ARK BUILD PLC,1481032,"168,995.00"
Ministry of Justice,HM Courts Service,02-Feb-11,BZ999-London Region,532000-Tangible GBV - Additions,SYKES & SON LTD,1482743,"79,145.00"
Ministry of Justice,HM Courts Service,02-Feb-11,CZ999-South East Region,222001-Maintenance,EUROPEAN ASBESTOS SERVICES,1481365,"30,015.00"
Ministry of Justice,HM Courts Service,02-Feb-11,CZ999-South East Region,532000-Tangible GBV - Additions,ARK BUILD PLC,1481032,"86,400.00"
Ministry of Justice,HM Courts Service,02-Feb-11,DZ999-South West Region,222001-Maintenance,KIER BUILDING SERVICES ENG,301940,"36,944.00"
Ministry of Justice,HM Courts Service,02-Feb-11,DZ999-South West Region,222001-Maintenance,KIER BUILDING SERVICES ENG,301940,"33,486.00"
Ministry of Justice,HM Courts Service,02-Feb-11,DZ999-South West Region,223001-Printing Postage and Office expenditure,ROYAL MAIL,1482643,"56,590.00"
Ministry of Justice,HM Courts Service,02-Feb-11,EZ999-Wales Region,222001-Maintenance,KIER BUILDING SERVICES ENG,301940,"32,045.00"
Ministry of Justice,HM Courts Service,02-Feb-11,EZ999-Wales Region,222001-Maintenance,KIER BUILDING SERVICES ENG,301940,"50,104.00"
Ministry of Justice,HM Courts Service,02-Feb-11,EZ999-Wales Region,532000-Tangible GBV - Additions,SC MOORE LTD,1482658,"55,326.00"
Ministry of Justice,HM Courts Service,02-Feb-11,EZ999-Wales Region,532000-Tangible GBV - Additions,SC MOORE LTD,1482657,"46,001.00"
Ministry of Justice,HM Courts Service,02-Feb-11,EZ999-Wales Region,532000-Tangible GBV - Additions,F P HURLEY & SONS LTD,1481371,"32,325.00"
Ministry of Justice,HM Courts Service,02-Feb-11,FZ999-Midlands Region,262000-SCA Costs,H & W COURTS LIMITED,1481453,"548,655.00"
Ministry of Justice,HM Courts Service,02-Feb-11,FZ999-Midlands Region,265000-IT & Telecommunications,CABLE & WIRELESS GLOBAL CARD SERVICES,1481161,"25,655.00"
Ministry of Justice,HM Courts Service,02-Feb-11,FZ999-Midlands Region,532000-Tangible GBV - Additions,SITEC INTERIORS LTD,1482692,"37,008.00"
Ministry of Justice,HM Courts Service,02-Feb-11,FZ999-Midlands Region,532000-Tangible GBV - Additions,MCDOWALL AIR CONDITIONING (UK) LTD,1481710,"249,559.00"
Ministry of Justice,HM Courts Service,02-Feb-11,GZ999-North West Region,222001-Maintenance,BAILEY MAINTENANCE LTD,1481048,"59,892.00"
Ministry of Justice,HM Courts Service,02-Feb-11,GZ999-North West Region,532000-Tangible GBV - Additions,CARILLION PLANNED MAINTENANCE,1481176,"25,445.00"
Ministry of Justice,HM Courts Service,02-Feb-11,GZ999-North West Region,532000-Tangible GBV - Additions,MITIE TECHNICAL FACILITIES MANAGEMENT LTD,1481744,"41,913.00"
Ministry of Justice,HM Courts Service,02-Feb-11,GZ999-North West Region,532000-Tangible GBV - Additions,CARILLION PLANNED MAINTENANCE,1481175,"29,444.00"
Ministry of Justice,HM Courts Service,02-Feb-11,HZ999-North East and Yorkshire,222001-Maintenance,BAILEY MAINTENANCE LTD,1481048,"47,944.00"
Ministry of Justice,HM Courts Service,02-Feb-11,HZ999-North East and Yorkshire,223001-Printing Postage and Office expenditure,HM PRISON SERVICE,1481525,"83,035.00"
Ministry of Justice,HM Courts Service,02-Feb-11,HZ999-North East and Yorkshire,532000-Tangible GBV - Additions,MITIE TECHNICAL FACILITIES MANAGEMENT LTD,1481743,"145,448.00"
Ministry of Justice,HM Courts Service,02-Feb-11,HZ999-North East and Yorkshire,532000-Tangible GBV - Additions,HOWARD RUSSEL CONSTRUCTION LTD,1481544,"57,153.00"
Ministry of Justice,HM Courts Service,02-Feb-11,HZ999-North East and Yorkshire,532000-Tangible GBV - Additions,MITIE TECHNICAL FACILITIES MANAGEMENT LTD,1481743,"42,108.00"
Ministry of Justice,HM Courts Service,02-Feb-11,HZ999-North East and Yorkshire,532000-Tangible GBV - Additions,MITIE TECHNICAL FACILITIES MANAGEMENT LTD,1481743,"34,802.00"
Ministry of Justice,HM Courts Service,02-Feb-11,IZ999-RCJ Group,222001-Maintenance,CARILLION PLANNED MAINTENANCE,1481175,"65,976.00"
Ministry of Justice,HM Courts Service,02-Feb-11,IZ999-RCJ Group,710800-Creditor <1 yr - Third Party Monies,THE OFFICIAL RECEIVER,302209,"73,050.00"
Ministry of Justice,HM Courts Service,02-Feb-11,IZ999-RCJ Group,710800-Creditor <1 yr - Third Party Monies,THE OFFICIAL RECEIVER,302209,"99,000.00"
Ministry of Justice,HM Courts Service,03-Feb-11,FZ999-Midlands Region,710800-Creditor <1 yr - Third Party Monies,ONE TIME CAPS,305550,"27,770.00"
Ministry of Justice,HM Courts Service,03-Feb-11,FZ999-Midlands Region,710800-Creditor <1 yr - Third Party Monies,ONE TIME CAPS,304788,"28,698.00"
Ministry of Justice,HM Courts Service,03-Feb-11,FZ999-Midlands Region,710800-Creditor <1 yr - Third Party Monies,ONE TIME CAPS,303364,"25,005.00"
Ministry of Justice,HM Courts Service,03-Feb-11,FZ999-Midlands Region,710800-Creditor <1 yr - Third Party Monies,ONE TIME CAPS,303661,"41,217.00"
Ministry of Justice,HM Courts Service,03-Feb-11,WW010-Balance Sheet HMCS,721200-Creditors > 1 year - Other,CUMBRIA COUNTY COUNCIL,305594,"31,485.00"
Ministry of Justice,HM Courts Service,04-Feb-11,AG999-Estates Directorate HMCS HQ,532000-Tangible GBV - Additions,ALL SECURITY SYSTEMS LTD,1484253,"90,544.00"
Ministry of Justice,HM Courts Service,04-Feb-11,BZ999-London Region,532000-Tangible GBV - Additions,R&M CLARKSON LTD,1484835,"29,545.00"
Ministry of Justice,HM Courts Service,04-Feb-11,BZ999-London Region,532000-Tangible GBV - Additions,R&M CLARKSON LTD,1484834,"171,100.00"
Ministry of Justice,HM Courts Service,04-Feb-11,BZ999-London Region,532000-Tangible GBV - Additions,ROLFE CONTRACTING LTD,1484874,"50,541.00"
Ministry of Justice,HM Courts Service,04-Feb-11,CZ999-South East Region,222001-Maintenance,NORLAND MANAGED SERVICES LTD,1484759,"28,934.00"
Ministry of Justice,HM Courts Service,04-Feb-11,CZ999-South East Region,222002-Other Property Costs,HI-SPEC FACILITIES SUPPORT CO PLC,1484552,"258,548.00"
Ministry of Justice,HM Courts Service,04-Feb-11,CZ999-South East Region,222001-Maintenance,EC HARRIS LLP,1484450,"153,000.00"
Ministry of Justice,HM Courts Service,04-Feb-11,DZ999-South West Region,222001-Maintenance,NORLAND MANAGED SERVICES LTD,1484758,"38,874.00"
Ministry of Justice,HM Courts Service,04-Feb-11,DZ999-South West Region,532000-Tangible GBV - Additions,STRUCTURA UK LIMITED,1484943,"106,786.00"
Ministry of Justice,HM Courts Service,04-Feb-11,DZ999-South West Region,532000-Tangible GBV - Additions,AC MECHANICAL SERVICES LTD,305908,"54,613.00"
Ministry of Justice,HM Courts Service,04-Feb-11,DZ999-South West Region,610400-Debtors <1 year - Prepayments & Accrued Income,GVA GRIMLEY LTD,1484516,"29,940.00"
Ministry of Justice,HM Courts Service,04-Feb-11,EZ999-Wales Region,532000-Tangible GBV - Additions,HENSTAFF CONSTRUCTION LTD,1484546,"90,692.00"
Ministry of Justice,HM Courts Service,04-Feb-11,EZ999-Wales Region,532000-Tangible GBV - Additions,SC MOORE LTD,1484885,"73,139.00"
Ministry of Justice,HM Courts Service,04-Feb-11,GZ999-North West Region,222001-Maintenance,CARILLION PLANNED MAINTENANCE,1484351,"29,762.00"
Ministry of Justice,HM Courts Service,04-Feb-11,GZ999-North West Region,532000-Tangible GBV - Additions,BASTION SECURITY INSTALLATIONS,1484289,"27,567.00"
Ministry of Justice,HM Courts Service,04-Feb-11,GZ999-North West Region,610300-Debtors < 1 Year - Deposits & Advances,NEOPOST LTD,1484749,"141,475.00"
Ministry of Justice,HM Courts Service,04-Feb-11,HZ999-North East and Yorkshire,222001-Maintenance,DTZ DEBENHAM TIE LEUNG,1484440,"59,402.00"
Ministry of Justice,HM Courts Service,04-Feb-11,HZ999-North East and Yorkshire,532000-Tangible GBV - Additions,ASSURED FIRE & SECURITY LTD,1484240,"27,195.00"
Ministry of Justice,HM Courts Service,07-Feb-11,AU999-National Taxing Teams,226000-Court Costs,MESSRS TAYLOR HALDANE BARLEX LLP#CM77 8YG,306730,"35,733.00"
Ministry of Justice,HM Courts Service,07-Feb-11,AU999-National Taxing Teams,226000-Court Costs,FRISBY SOLICITORS LTD T/A FRISBY & CO#DX 14564,1485086,"80,584.00"
Ministry of Justice,HM Courts Service,07-Feb-11,AU999-National Taxing Teams,226000-Court Costs,MESSRS NORTON ROSE SOLICITORS#DX 85,1485276,"32,729.00"
Ministry of Justice,HM Courts Service,07-Feb-11,AU999-National Taxing Teams,226000-Court Costs,MESSRS NORTON ROSE SOLICITORS#DX 85,1485276,"305,211.00"
Ministry of Justice,HM Courts Service,07-Feb-11,AU999-National Taxing Teams,226000-Court Costs,MESSRS KEOGHS LLP#DX 723540,306481,"25,354.00"
Ministry of Justice,HM Courts Service,07-Feb-11,AU999-National Taxing Teams,226000-Court Costs,MESSRS KEOGHS LLP#DX 721682,306480,"58,418.00"
Ministry of Justice,HM Courts Service,07-Feb-11,AU999-National Taxing Teams,226000-Court Costs,MESSRS JANES SOLICITORS#DX 140544,1485232,"25,147.00"
Ministry of Justice,HM Courts Service,07-Feb-11,AU999-National Taxing Teams,226000-Court Costs,MESSRS GEOFFREY MILLER SOLICITORS#DX 14426,1485193,"26,715.00"
Ministry of Justice,HM Courts Service,07-Feb-11,AU999-National Taxing Teams,226000-Court Costs,MESSRS DAVENPORT LYONS#W1S 3NL,306278,"376,867.00"
Ministry of Justice,HM Courts Service,07-Feb-11,AU999-National Taxing Teams,226000-Court Costs,MESSRS MORRISON & MASTERS#DX 132171,306559,"32,861.00"
Ministry of Justice,HM Courts Service,07-Feb-11,AU999-National Taxing Teams,226000-Court Costs,MESSRS ROHAN & CO#DX 155890,1485305,"76,564.00"
Ministry of Justice,HM Courts Service,07-Feb-11,AU999-National Taxing Teams,226000-Court Costs,MESSRS WILLIAM BACHE & CO#DX 124686,306799,"36,434.00"
Ministry of Justice,HM Courts Service,07-Feb-11,AU999-National Taxing Teams,226000-Court Costs,MESSRS PANNONE LLP#WC2A 1HR,1485285,"906,143.00"
Ministry of Justice,HM Courts Service,07-Feb-11,AU999-National Taxing Teams,226000-Court Costs,MESSRS PETERS & PETERS#DX 407,1485293,"63,512.00"
Ministry of Justice,HM Courts Service,07-Feb-11,AU999-National Taxing Teams,226000-Court Costs,MESSRS LT LAW#W1D 3QL,306518,"32,840.00"
Ministry of Justice,HM Courts Service,07-Feb-11,AU999-National Taxing Teams,226000-Court Costs,MESSRS TANK JOWETT#DX 51150,1485347,"43,281.00"
Ministry of Justice,HM Courts Service,07-Feb-11,AU999-National Taxing Teams,226000-Court Costs,MESSRS DYNE SOLICITORS#CH3 9PX,1485167,"28,476.00"
Ministry of Justice,HM Courts Service,07-Feb-11,AU999-National Taxing Teams,226000-Court Costs,MESSRS HANNIDES & CO#DX 54852,1485204,"26,077.00"
Ministry of Justice,HM Courts Service,07-Feb-11,AU999-National Taxing Teams,226000-Court Costs,MESSRS FINERS STEPHENS INNOCENT#DX 42739,1485178,"40,306.00"
Ministry of Justice,HM Courts Service,07-Feb-11,AU999-National Taxing Teams,226000-Court Costs,KHAN SOLICITORS#DX 11788,306106,"88,318.00"
Ministry of Justice,HM Courts Service,07-Feb-11,AU999-National Taxing Teams,226000-Court Costs,COPLEYS#DX 80902,1485072,"60,586.00"
Ministry of Justice,HM Courts Service,07-Feb-11,AU999-National Taxing Teams,226000-Court Costs,MESSRS GQS SOLICITORS#DX 20658,306382,"25,059.00"
Ministry of Justice,HM Courts Service,07-Feb-11,AU999-National Taxing Teams,226000-Court Costs,MESSRS KINGSLEY NAPLEY LLP#DX 22,306487,"67,742.00"
Ministry of Justice,HM Courts Service,07-Feb-11,AU999-National Taxing Teams,226000-Court Costs,MESSRS RADCLIFFES LEBRASSEUR#DX 113,306627,"273,274.00"
Ministry of Justice,HM Courts Service,07-Feb-11,AU999-National Taxing Teams,311200-Criminal Legal Aid,MESSRS AHMED & CO#DX121903,306134,"36,710.00"
Ministry of Justice,HM Courts Service,07-Feb-11,AU999-National Taxing Teams,311200-Criminal Legal Aid,MESSRS BIRDS#DX 59062,1485129,"41,856.00"
Ministry of Justice,HM Courts Service,07-Feb-11,AU999-National Taxing Teams,311200-Criminal Legal Aid,MESSRS FARADAYS#DX 89204,306333,"56,074.00"
Ministry of Justice,HM Courts Service,07-Feb-11,AU999-National Taxing Teams,311200-Criminal Legal Aid,MESSRS BKRW#DX4902,306193,"25,405.00"
Ministry of Justice,HM Courts Service,07-Feb-11,AU999-National Taxing Teams,311200-Criminal Legal Aid,MESSRS PATTERSONS# HX1 2AF,306590,"37,663.00"
Ministry of Justice,HM Courts Service,07-Feb-11,AU999-National Taxing Teams,311200-Criminal Legal Aid,MESSRS MPR SOLICITORS LLP#DX 3535,306563,"70,288.00"
Ministry of Justice,HM Courts Service,07-Feb-11,AU999-National Taxing Teams,311200-Criminal Legal Aid,MESSRS THE JOHNSON PARTNERSHIP#DX 10082,1485350,"61,437.00"
Ministry of Justice,HM Courts Service,07-Feb-11,AU999-National Taxing Teams,311200-Criminal Legal Aid,MR D ENOCH#DX 148,307330,"35,288.00"
Ministry of Justice,HM Courts Service,07-Feb-11,AU999-National Taxing Teams,311200-Criminal Legal Aid,MR P GREANEY#DX 26401,307899,"34,118.00"
Ministry of Justice,HM Courts Service,07-Feb-11,AU999-National Taxing Teams,311200-Criminal Legal Aid,MISS S MERTENS#DX 440,307053,"28,719.00"
Ministry of Justice,HM Courts Service,07-Feb-11,AU999-National Taxing Teams,311200-Criminal Legal Aid,MR P GRIFFITHS#WC1R 4EW,307901,"33,938.00"
Ministry of Justice,HM Courts Service,07-Feb-11,AU999-National Taxing Teams,311200-Criminal Legal Aid,MR D SPENS QC#DX 34,307378,"50,067.00"
Ministry of Justice,HM Courts Service,07-Feb-11,AU999-National Taxing Teams,311200-Criminal Legal Aid,MR AJM O'BYRNE#DX 728861,1485410,"26,688.00"
Ministry of Justice,HM Courts Service,07-Feb-11,AU999-National Taxing Teams,311200-Criminal Legal Aid,MR JR HODGKINSON#DX 723240,307650,"27,510.00"
Ministry of Justice,HM Courts Service,07-Feb-11,AU999-National Taxing Teams,311200-Criminal Legal Aid,N P RHODES#DX 429,308370,"25,292.00"
Ministry of Justice,HM Courts Service,07-Feb-11,AU999-National Taxing Teams,311200-Criminal Legal Aid,MR T BURKE#DX 429,308158,"33,154.00"
Ministry of Justice,HM Courts Service,07-Feb-11,AU999-National Taxing Teams,311200-Criminal Legal Aid,MR I HENDERSON#DX 80707,1485456,"26,575.00"
Ministry of Justice,HM Courts Service,07-Feb-11,AU999-National Taxing Teams,311200-Criminal Legal Aid,MR B SQUIRRELL#DX 453,307242,"36,525.00"
Ministry of Justice,HM Courts Service,07-Feb-11,AU999-National Taxing Teams,311200-Criminal Legal Aid,MR R BOWERS#DX 440,307965,"28,750.00"
Ministry of Justice,HM Courts Service,07-Feb-11,AU999-National Taxing Teams,311200-Criminal Legal Aid,PAUL C REID#DX 14338,1485550,"26,834.00"
Ministry of Justice,HM Courts Service,07-Feb-11,AU999-National Taxing Teams,311200-Criminal Legal Aid,MR A ROXBOROUGH#M19 2GL,307180,"25,793.00"
Ministry of Justice,HM Courts Service,07-Feb-11,AU999-National Taxing Teams,311200-Criminal Legal Aid,MR T BOULTER#DX 72,308154,"40,080.00"
Ministry of Justice,HM Courts Service,07-Feb-11,AU999-National Taxing Teams,311200-Criminal Legal Aid,J  HILL#DX 711700,306085,"30,411.00"
Ministry of Justice,HM Courts Service,07-Feb-11,HZ999-North East and Yorkshire,222001-Maintenance,TASS EUROPE LTD,1485580,"41,518.00"
Ministry of Justice,HM Courts Service,08-Feb-11,AR999-HMCS Central Budgets,734000-Provisions - Utilised in year,CABINET OFFICE: CIVIL SUPERANNUATION#AE10410072,1046,"21,000,000.00"
Ministry of Justice,HM Courts Service,09-Feb-11,AV329-CP-Mag. Courts Operational Bus.sys,265000-IT & Telecommunications,LOGICA UK LTD,1490806,"47,516.00"
Ministry of Justice,HM Courts Service,09-Feb-11,AR999-HMCS Central Budgets,710700-Payable to Other Government Departments,HOME OFFICE GENERAL CASH ACCOUNT#AR10110250,1047,"22,315,695.23"
Ministry of Justice,HM Courts Service,09-Feb-11,BZ999-London Region,222001-Maintenance,SYKES & SON LTD,1491225,"29,586.00"
Ministry of Justice,HM Courts Service,09-Feb-11,BZ999-London Region,222001-Maintenance,SYKES & SON LTD,1491225,"33,286.00"
Ministry of Justice,HM Courts Service,09-Feb-11,BZ999-London Region,226000-Court Costs,SELLERS LEGAL SERVICES LTD,1491133,"46,943.00"
Ministry of Justice,HM Courts Service,09-Feb-11,BZ999-London Region,226000-Court Costs,MERRILL LEGAL SOLUTIONS,1490868,"27,876.00"
Ministry of Justice,HM Courts Service,09-Feb-11,BZ999-London Region,532000-Tangible GBV - Additions,EC HARRIS LLP,1490475,"33,726.00"
Ministry of Justice,HM Courts Service,09-Feb-11,BZ999-London Region,532000-Tangible GBV - Additions,SKANSEN INTERIORS LTD,1491161,"108,987.00"
Ministry of Justice,HM Courts Service,09-Feb-11,BZ999-London Region,532000-Tangible GBV - Additions,BLAKE CONTRACTORS LTD,1490239,"75,888.00"
Ministry of Justice,HM Courts Service,09-Feb-11,BZ999-London Region,532000-Tangible GBV - Additions,LAING O'ROURKE CONSTRUCTION SOUTH LTD,1490769,"1,612,122.00"
Ministry of Justice,HM Courts Service,09-Feb-11,BZ999-London Region,532000-Tangible GBV - Additions,BLAKE CONTRACTORS LTD,1490239,"160,873.00"
Ministry of Justice,HM Courts Service,09-Feb-11,CZ999-South East Region,222001-Maintenance,BAILEY MAINTENANCE LTD,1490178,"58,997.00"
Ministry of Justice,HM Courts Service,09-Feb-11,CZ999-South East Region,222001-Maintenance,ACCLAIM CONTRACTS LTD,1490126,"81,116.00"
Ministry of Justice,HM Courts Service,09-Feb-11,CZ999-South East Region,222001-Maintenance,BAILEY MAINTENANCE LTD,1490177,"44,856.00"
Ministry of Justice,HM Courts Service,09-Feb-11,CZ999-South East Region,223001-Printing Postage and Office expenditure,ROYAL MAIL,1491103,"42,741.00"
Ministry of Justice,HM Courts Service,09-Feb-11,DZ999-South West Region,222002-Other Property Costs,MITIE SECURITY LTD,1490880,"307,335.00"
Ministry of Justice,HM Courts Service,09-Feb-11,DZ999-South West Region,222001-Maintenance,MITIE TECHNICAL FACILITIES MANAGEMENT LTD,1490882,"93,902.00"
Ministry of Justice,HM Courts Service,09-Feb-11,DZ999-South West Region,532000-Tangible GBV - Additions,AC MECHANICAL SERVICES LTD,309161,"46,462.00"
Ministry of Justice,HM Courts Service,09-Feb-11,DZ999-South West Region,532000-Tangible GBV - Additions,ISLWYN PUGH CONSTRUCTION LTD,1490705,"44,297.00"
Ministry of Justice,HM Courts Service,09-Feb-11,EZ999-Wales Region,532000-Tangible GBV - Additions,POWERPERFECTOR PLC,1491037,"28,340.00"
Ministry of Justice,HM Courts Service,09-Feb-11,FZ999-Midlands Region,222002-Other Property Costs,MITIE SECURITY LTD,1490880,"437,888.00"
Ministry of Justice,HM Courts Service,09-Feb-11,FZ999-Midlands Region,222001-Maintenance,MITIE TECHNICAL FACILITIES MANAGEMENT LTD,1490881,"83,408.00"
Ministry of Justice,HM Courts Service,09-Feb-11,FZ999-Midlands Region,222001-Maintenance,MITIE TECHNICAL FACILITIES MANAGEMENT LTD,1490881,"38,512.00"
Ministry of Justice,HM Courts Service,09-Feb-11,FZ999-Midlands Region,222001-Maintenance,EMCOR FACILITIES SERVICES LTD,1490495,"129,322.00"
Ministry of Justice,HM Courts Service,09-Feb-11,FZ999-Midlands Region,532000-Tangible GBV - Additions,TBS MECHANICAL & ELECTRICAL DESIGN & BUILD LTD,1491235,"28,755.00"
Ministry of Justice,HM Courts Service,09-Feb-11,GZ999-North West Region,226000-Court Costs,CATER WALSH REPORTING LTD,309172,"67,173.00"
Ministry of Justice,HM Courts Service,09-Feb-11,HZ999-North East and Yorkshire,222001-Maintenance,BAILEY MAINTENANCE LTD,1490177,"56,432.00"
Ministry of Justice,HM Courts Service,09-Feb-11,HZ999-North East and Yorkshire,222001-Maintenance,HONEYWELL CONTROL SYSTEMS LTD,1490673,"37,403.00"
Ministry of Justice,HM Courts Service,09-Feb-11,HZ999-North East and Yorkshire,262000-SCA Costs,PALECASTLE LTD,1490971,"106,744.00"
Ministry of Justice,HM Courts Service,09-Feb-11,HZ999-North East and Yorkshire,262000-SCA Costs,MODERN COURTS (HUMBERSIDE) LTD,1490884,"382,563.00"
Ministry of Justice,HM Courts Service,09-Feb-11,HZ999-North East and Yorkshire,226000-Court Costs,J L HARPHAM,309196,"41,365.00"
Ministry of Justice,HM Courts Service,09-Feb-11,HZ999-North East and Yorkshire,532000-Tangible GBV - Additions,ALBERT INNES LTD,1490137,"42,247.00"
Ministry of Justice,HM Courts Service,09-Feb-11,IZ999-RCJ Group,261000-Fuel and Utilities,EDF ENERGY LTD,1490481,"45,064.00"
Ministry of Justice,HM Courts Service,09-Feb-11,IZ999-RCJ Group,222001-Maintenance,SYKES & SON LTD,1491225,"37,441.00"
Ministry of Justice,HM Courts Service,09-Feb-11,IZ999-RCJ Group,532000-Tangible GBV - Additions,EC HARRIS LLP,1490475,"29,658.00"
Ministry of Justice,HM Courts Service,10-Feb-11,FZ999-Midlands Region,710800-Creditor <1 yr - Third Party Monies,ONE TIME CAPS,310673,"26,029.00"
Ministry of Justice,HM Courts Service,10-Feb-11,FZ999-Midlands Region,710800-Creditor <1 yr - Third Party Monies,ONE TIME CAPS,312173,"25,625.00"
Ministry of Justice,HM Courts Service,10-Feb-11,FZ999-Midlands Region,710800-Creditor <1 yr - Third Party Monies,ONE TIME CAPS,312965,"29,135.00"
Ministry of Justice,HM Courts Service,10-Feb-11,FZ999-Midlands Region,710800-Creditor <1 yr - Third Party Monies,ONE TIME CAPS,310993,"40,665.00"
Ministry of Justice,HM Courts Service,11-Feb-11,AV322-CP Change Management SUPS,265000-IT & Telecommunications,LOGICA UK LTD,1493104,"285,626.00"
Ministry of Justice,HM Courts Service,11-Feb-11,AV322-CP Change Management SUPS,265000-IT & Telecommunications,LOGICA UK LTD,1493104,"83,111.00"
Ministry of Justice,HM Courts Service,11-Feb-11,AV322-CP Change Management SUPS,512000-Intangible GBV - Additions,LOGICA UK LTD,1493104,"48,418.00"
Ministry of Justice,HM Courts Service,11-Feb-11,AA499-HMCS Change Programme,265000-IT & Telecommunications,LOGICA UK LTD,1493104,"135,073.00"
Ministry of Justice,HM Courts Service,11-Feb-11,AR999-HMCS Central Budgets,211000-Judicial Salaries - Salaried,JUDICIAL PENSIONS SCHEME,1493074,"4,835,046.00"
Ministry of Justice,HM Courts Service,11-Feb-11,BZ999-London Region,222001-Maintenance,EC HARRIS LLP,1492912,"97,127.00"
Ministry of Justice,HM Courts Service,11-Feb-11,BZ999-London Region,532000-Tangible GBV - Additions,EC HARRIS LLP,1492912,"54,290.00"
Ministry of Justice,HM Courts Service,11-Feb-11,CZ999-South East Region,222002-Other Property Costs,MITIE SECURITY LTD,1493163,"576,206.00"
Ministry of Justice,HM Courts Service,11-Feb-11,CZ999-South East Region,532000-Tangible GBV - Additions,NORLAND MANAGED SERVICES LTD,1493183,"36,133.00"
Ministry of Justice,HM Courts Service,11-Feb-11,CZ999-South East Region,532000-Tangible GBV - Additions,EUROPEAN ASBESTOS SERVICES,1492930,"68,724.00"
Ministry of Justice,HM Courts Service,11-Feb-11,CZ999-South East Region,532000-Tangible GBV - Additions,METSHAPE LTD,1493158,"82,973.00"
Ministry of Justice,HM Courts Service,11-Feb-11,DZ999-South West Region,265000-IT & Telecommunications,CABLE & WIRELESS GLOBAL CARD SERVICES,1492830,"25,265.00"
Ministry of Justice,HM Courts Service,11-Feb-11,DZ999-South West Region,226000-Court Costs,MERRILL LEGAL SOLUTIONS,1493156,"45,982.00"
Ministry of Justice,HM Courts Service,11-Feb-11,EZ999-Wales Region,222002-Other Property Costs,MITIE SECURITY LTD,1493163,"189,051.00"
Ministry of Justice,HM Courts Service,11-Feb-11,GZ999-North West Region,226000-Court Costs,EUREST SERVICES,1492929,"30,805.00"
Ministry of Justice,HM Courts Service,11-Feb-11,GZ999-North West Region,532000-Tangible GBV - Additions,CMB ENGINEERING,1492857,"75,388.00"
Ministry of Justice,HM Courts Service,11-Feb-11,GZ999-North West Region,532000-Tangible GBV - Additions,BASTION SECURITY INSTALLATIONS,1492774,"26,062.00"
Ministry of Justice,HM Courts Service,11-Feb-11,GZ999-North West Region,610300-Debtors < 1 Year - Deposits & Advances,NEOPOST LTD,1493179,"137,519.00"
Ministry of Justice,HM Courts Service,11-Feb-11,IZ999-RCJ Group,222001-Maintenance,EC HARRIS LLP,1492912,"32,400.00"
Ministry of Justice,HM Courts Service,14-Feb-11,AU999-National Taxing Teams,311200-Criminal Legal Aid,MESSRS RC HALL#DX 36205,313452,"31,534.00"
Ministry of Justice,HM Courts Service,16-Feb-11,AV322-CP Change Management SUPS,265000-IT & Telecommunications,LOGICA UK LTD,1497374,"95,693.00"
Ministry of Justice,HM Courts Service,16-Feb-11,AV322-CP Change Management SUPS,265000-IT & Telecommunications,ATOS ORIGIN IT SERVICES UK LTD,1496786,"217,231.00"
Ministry of Justice,HM Courts Service,16-Feb-11,AV322-CP Change Management SUPS,512000-Intangible GBV - Additions,LOGICA UK LTD,1497374,"68,652.00"
Ministry of Justice,HM Courts Service,16-Feb-11,AE199-Finance Directorate HMCS HQ,212001-Agency staff,PARITY RESOURCES LTD,1498430,"28,800.00"
Ministry of Justice,HM Courts Service,16-Feb-11,AE199-Finance Directorate HMCS HQ,212001-Agency staff,PARITY RESOURCES LTD,1498430,"31,200.00"
Ministry of Justice,HM Courts Service,16-Feb-11,AG999-Estates Directorate HMCS HQ,532000-Tangible GBV - Additions,HYDRO MECHANICAL SERVICES LTD,1497274,"65,148.00"
Ministry of Justice,HM Courts Service,16-Feb-11,BZ999-London Region,532000-Tangible GBV - Additions,HURD ROLLAND PARTNERSHIP,1497267,"55,750.00"
Ministry of Justice,HM Courts Service,16-Feb-11,BZ999-London Region,532000-Tangible GBV - Additions,METSHAPE LTD,1497446,"201,351.00"
Ministry of Justice,HM Courts Service,16-Feb-11,BZ999-London Region,532000-Tangible GBV - Additions,BLAKE CONTRACTORS LTD,1496853,"31,381.00"
Ministry of Justice,HM Courts Service,16-Feb-11,CZ999-South East Region,222001-Maintenance,NORLAND MANAGED SERVICES LTD,1497500,"32,857.00"
Ministry of Justice,HM Courts Service,16-Feb-11,CZ999-South East Region,222001-Maintenance,NORLAND MANAGED SERVICES LTD,1497500,"41,380.00"
Ministry of Justice,HM Courts Service,16-Feb-11,CZ999-South East Region,222001-Maintenance,MITIE TECHNICAL FACILITIES MANAGEMENT LTD,1497459,"42,201.00"
Ministry of Justice,HM Courts Service,16-Feb-11,CZ999-South East Region,222001-Maintenance,BAILEY MAINTENANCE LTD,1496796,"27,076.00"
Ministry of Justice,HM Courts Service,16-Feb-11,CZ999-South East Region,222001-Maintenance,BAILEY MAINTENANCE LTD,1496796,"25,274.00"
Ministry of Justice,HM Courts Service,16-Feb-11,CZ999-South East Region,265000-IT & Telecommunications,HERTFORDSHIRE COUNTY COUNCIL,1497224,"27,795.00"
Ministry of Justice,HM Courts Service,16-Feb-11,CZ999-South East Region,532000-Tangible GBV - Additions,GALLIFORD TRY CONSTRUCTION LTD CENTRAL,1497141,"621,354.00"
Ministry of Justice,HM Courts Service,16-Feb-11,CZ999-South East Region,532000-Tangible GBV - Additions,GALLIFORD TRY CONSTRUCTION LTD CENTRAL,1497141,"427,940.00"
Ministry of Justice,HM Courts Service,16-Feb-11,CZ999-South East Region,532000-Tangible GBV - Additions,ARK BUILD PLC,1496779,"158,835.00"
Ministry of Justice,HM Courts Service,16-Feb-11,CZ999-South East Region,610400-Debtors <1 year - Prepayments & Accrued Income,HERTFORDSHIRE COUNTY COUNCIL,1497224,"34,911.00"
Ministry of Justice,HM Courts Service,16-Feb-11,DZ999-South West Region,222002-Other Property Costs,REGENT OFFICE CARE LTD,1498513,"136,182.00"
Ministry of Justice,HM Courts Service,16-Feb-11,DZ999-South West Region,532000-Tangible GBV - Additions,HURD ROLLAND PARTNERSHIP,1497267,"63,833.00"
Ministry of Justice,HM Courts Service,16-Feb-11,DZ999-South West Region,532000-Tangible GBV - Additions,CONCRETE REPAIRS LIMITED,1496955,"35,960.00"
Ministry of Justice,HM Courts Service,16-Feb-11,EZ999-Wales Region,222002-Other Property Costs,OCS SUPPORT SERVICES LTD,1497523,"89,847.00"
Ministry of Justice,HM Courts Service,16-Feb-11,EZ999-Wales Region,532000-Tangible GBV - Additions,LORNE STEWART PLC,1497377,"61,991.00"
Ministry of Justice,HM Courts Service,16-Feb-11,EZ999-Wales Region,532000-Tangible GBV - Additions,HENSTAFF CONSTRUCTION LTD,1497222,"91,426.00"
Ministry of Justice,HM Courts Service,16-Feb-11,EZ999-Wales Region,532000-Tangible GBV - Additions,HENSTAFF CONSTRUCTION LTD,1497222,"165,172.00"
Ministry of Justice,HM Courts Service,16-Feb-11,EZ999-Wales Region,532000-Tangible GBV - Additions,JCW (WALES) AIR CONDITIONING,1497293,"39,373.00"
Ministry of Justice,HM Courts Service,16-Feb-11,EZ999-Wales Region,532000-Tangible GBV - Additions,F P HURLEY & SONS LTD,1497095,"25,806.00"
Ministry of Justice,HM Courts Service,16-Feb-11,EZ999-Wales Region,532000-Tangible GBV - Additions,HENSTAFF CONSTRUCTION LTD,1497222,"186,929.00"
Ministry of Justice,HM Courts Service,16-Feb-11,EZ999-Wales Region,532000-Tangible GBV - Additions,F P HURLEY & SONS LTD,1497095,"100,157.00"
Ministry of Justice,HM Courts Service,16-Feb-11,EZ999-Wales Region,532000-Tangible GBV - Additions,F P HURLEY & SONS LTD,1497095,"36,604.00"
Ministry of Justice,HM Courts Service,16-Feb-11,EZ999-Wales Region,532000-Tangible GBV - Additions,LORNE STEWART PLC,1497377,"130,970.00"
Ministry of Justice,HM Courts Service,16-Feb-11,FZ999-Midlands Region,222002-Other Property Costs,REGENT OFFICE CARE LTD,1498513,"258,244.00"
Ministry of Justice,HM Courts Service,16-Feb-11,FZ999-Midlands Region,222001-Maintenance,EMCOR FACILITIES SERVICES LTD,1497077,"131,640.00"
Ministry of Justice,HM Courts Service,16-Feb-11,FZ999-Midlands Region,265000-IT & Telecommunications,BT TELECOMMUNICATIONS PLC,1496878,"25,035.00"
Ministry of Justice,HM Courts Service,16-Feb-11,GZ999-North West Region,261000-Fuel and Utilities,UNITED UTILITIES WATER PLC,314228,"41,882.00"
Ministry of Justice,HM Courts Service,16-Feb-11,GZ999-North West Region,222002-Other Property Costs,MITIE SECURITY LTD,1497458,"436,890.00"
Ministry of Justice,HM Courts Service,16-Feb-11,GZ999-North West Region,222002-Other Property Costs,"OCS GROUP UK LTD, OCS ENGINEERING",1497522,"28,078.00"
Ministry of Justice,HM Courts Service,16-Feb-11,GZ999-North West Region,222002-Other Property Costs,ELITE CLEANING & ENV SERVICES LTD,1497071,"178,103.00"
Ministry of Justice,HM Courts Service,16-Feb-11,GZ999-North West Region,532000-Tangible GBV - Additions,ERIC CHARLESWORTH  LTD,1497084,"45,600.00"
Ministry of Justice,HM Courts Service,16-Feb-11,HZ999-North East and Yorkshire,222001-Maintenance,FIBRE ENVIRONMENTAL SERVICES LTD,1497104,"108,792.00"
Ministry of Justice,HM Courts Service,16-Feb-11,HZ999-North East and Yorkshire,222002-Other Property Costs,ELITE CLEANING & ENV SERVICES LTD,1497071,"137,894.00"
Ministry of Justice,HM Courts Service,16-Feb-11,HZ999-North East and Yorkshire,532000-Tangible GBV - Additions,DIMESTAGE (CONSTRUCTION COMPANY) LTD (DCC),1497028,"67,975.00"
Ministry of Justice,HM Courts Service,16-Feb-11,HZ999-North East and Yorkshire,532000-Tangible GBV - Additions,HUGH LS MCCONNELL LTD,1497260,"32,338.00"
Ministry of Justice,HM Courts Service,16-Feb-11,HZ999-North East and Yorkshire,610400-Debtors <1 year - Prepayments & Accrued Income,DEPARTMENT FOR WORK & PENSIONS (DWP),1497022,"75,513.00"
Ministry of Justice,HM Courts Service,16-Feb-11,IZ999-RCJ Group,222001-Maintenance,SYKES & SON LTD,1498647,"31,432.00"
Ministry of Justice,HM Courts Service,16-Feb-11,IZ999-RCJ Group,265000-IT & Telecommunications,INFORMATION INITIATIVES LTD,314074,"28,897.00"
Ministry of Justice,HM Courts Service,16-Feb-11,IZ999-RCJ Group,532000-Tangible GBV - Additions,ROLFE CONTRACTING LTD,1498541,"51,170.00"
Ministry of Justice,HM Courts Service,16-Feb-11,IZ999-RCJ Group,710800-Creditor <1 yr - Third Party Monies,THE OFFICIAL RECEIVER,314226,"123,000.00"
Ministry of Justice,HM Courts Service,17-Feb-11,FZ999-Midlands Region,710800-Creditor <1 yr - Third Party Monies,ONE TIME CAPS,316633,"25,513.00"
Ministry of Justice,HM Courts Service,17-Feb-11,FZ999-Midlands Region,710800-Creditor <1 yr - Third Party Monies,ONE TIME CAPS,317321,"27,267.00"
Ministry of Justice,HM Courts Service,17-Feb-11,FZ999-Midlands Region,710800-Creditor <1 yr - Third Party Monies,ONE TIME CAPS,315621,"38,912.00"
Ministry of Justice,HM Courts Service,18-Feb-11,AG999-Estates Directorate HMCS HQ,222001-Maintenance,WHEELERS,1500845,"25,430.00"
Ministry of Justice,HM Courts Service,18-Feb-11,AG999-Estates Directorate HMCS HQ,222001-Maintenance,WHEELERS,1500845,"32,348.00"
Ministry of Justice,HM Courts Service,18-Feb-11,AG999-Estates Directorate HMCS HQ,222001-Maintenance,MICHELMORES SOLICITORS,1500586,"27,800.00"
Ministry of Justice,HM Courts Service,18-Feb-11,CZ999-South East Region,261000-Fuel and Utilities,ANGLIAN WATER,1500217,"27,909.00"
Ministry of Justice,HM Courts Service,18-Feb-11,CZ999-South East Region,262000-SCA Costs,MODERN COURTS (EAST ANGLIA) LTD,1500593,"426,675.00"
Ministry of Justice,HM Courts Service,18-Feb-11,EZ999-Wales Region,532000-Tangible GBV - Additions,HENSTAFF CONSTRUCTION LTD,1500482,"94,236.00"
Ministry of Justice,HM Courts Service,18-Feb-11,FZ999-Midlands Region,532000-Tangible GBV - Additions,SITEC INTERIORS LTD,1500736,"47,704.00"
Ministry of Justice,HM Courts Service,18-Feb-11,GZ999-North West Region,261000-Fuel and Utilities,UNITED UTILITIES WATER PLC,317648,"101,510.00"
Ministry of Justice,HM Courts Service,18-Feb-11,GZ999-North West Region,222002-Other Property Costs,RENTOKIL INITIAL UK LIMITED,1500686,"58,727.00"
Ministry of Justice,HM Courts Service,18-Feb-11,GZ999-North West Region,222001-Maintenance,CARILLION PLANNED MAINTENANCE,1500303,"194,348.00"
Ministry of Justice,HM Courts Service,18-Feb-11,GZ999-North West Region,262000-SCA Costs,UK COURT SERVICES LTD,1500814,"27,726.00"
Ministry of Justice,HM Courts Service,18-Feb-11,GZ999-North West Region,262000-SCA Costs,UK COURT SERVICES LTD,1500814,"545,722.00"
Ministry of Justice,HM Courts Service,18-Feb-11,GZ999-North West Region,610300-Debtors < 1 Year - Deposits & Advances,NEOPOST LTD,1500608,"116,880.00"
Ministry of Justice,HM Courts Service,18-Feb-11,GZ999-North West Region,610400-Debtors <1 year - Prepayments & Accrued Income,LONDON & CAPITAL PROPERTIES LTD,1500558,"33,941.00"
Ministry of Justice,HM Courts Service,18-Feb-11,GZ999-North West Region,610400-Debtors <1 year - Prepayments & Accrued Income,LONDON & CAPITAL PROPERTIES LTD,1500558,"44,264.00"
Ministry of Justice,HM Courts Service,18-Feb-11,GZ999-North West Region,610400-Debtors <1 year - Prepayments & Accrued Income,LONDON & CAPITAL PROPERTIES LTD,1500558,"45,532.00"
Ministry of Justice,HM Courts Service,18-Feb-11,GZ999-North West Region,610400-Debtors <1 year - Prepayments & Accrued Income,LONDON & CAPITAL PROPERTIES LTD,1500558,"45,714.00"
Ministry of Justice,HM Courts Service,18-Feb-11,HZ999-North East and Yorkshire,222002-Other Property Costs,RENTOKIL INITIAL UK LIMITED,1500685,"50,633.00"
Ministry of Justice,HM Courts Service,18-Feb-11,WW000-Balance Sheet,710100-Creditors < 1 year - Other Taxation & Social Security,HMRC,1048,"3,687,737.00"
Ministry of Justice,HM Courts Service,18-Feb-11,WW000-Balance Sheet,710100-Creditors < 1 year - Other Taxation & Social Security,HMRC,1055,"607,531.00"
Ministry of Justice,HM Courts Service,18-Feb-11,WW000-Balance Sheet,710100-Creditors < 1 year - Other Taxation & Social Security,HMRC,1053,"2,946,884.00"
Ministry of Justice,HM Courts Service,18-Feb-11,WW000-Balance Sheet,710100-Creditors < 1 year - Other Taxation & Social Security,HMRC,1054,"403,760.00"
Ministry of Justice,HM Courts Service,18-Feb-11,WW000-Balance Sheet,710100-Creditors < 1 year - Other Taxation & Social Security,HMRC,1052,"2,493,423.00"
Ministry of Justice,HM Courts Service,18-Feb-11,WW000-Balance Sheet,710100-Creditors < 1 year - Other Taxation & Social Security,HMRC,1049,"2,622,884.00"
Ministry of Justice,HM Courts Service,21-Feb-11,AU999-National Taxing Teams,226000-Court Costs,MESSRS KINGSLEY NAPLEY LLP#DX 22,318009,"59,105.00"
Ministry of Justice,HM Courts Service,21-Feb-11,AU999-National Taxing Teams,226000-Court Costs,MESSRS DLA PIPER UK LLP#EC2V 7EE,317859,"58,750.00"
Ministry of Justice,HM Courts Service,21-Feb-11,AU999-National Taxing Teams,226000-Court Costs,MESSRS DLA PIPER UK LLP#EC2V 7EE,317859,"71,093.00"
Ministry of Justice,HM Courts Service,21-Feb-11,AU999-National Taxing Teams,226000-Court Costs,MESSRS REYNOLDS PORTER CHAMBERLAIN LLP#DX 600,318138,"215,754.00"
Ministry of Justice,HM Courts Service,21-Feb-11,AU999-National Taxing Teams,226000-Court Costs,MESSRS MORGAN COLE#DX 33014,318077,"192,474.00"
Ministry of Justice,HM Courts Service,21-Feb-11,AU999-National Taxing Teams,226000-Court Costs,MESSRS EDWARD HAYES#DX30307,1500974,"466,115.00"
Ministry of Justice,HM Courts Service,21-Feb-11,AU999-National Taxing Teams,226000-Court Costs,MESSRS CHARLES RUSSELL#DX 7442,317808,"46,522.00"
Ministry of Justice,HM Courts Service,21-Feb-11,AU999-National Taxing Teams,226000-Court Costs,MESSES KINGS LEGAL#DX 743340,317720,"25,509.00"
Ministry of Justice,HM Courts Service,21-Feb-11,AU999-National Taxing Teams,226000-Court Costs,MESSRS BOND PEARCE#DX 38517,1500946,"71,472.00"
Ministry of Justice,HM Courts Service,21-Feb-11,AU999-National Taxing Teams,226000-Court Costs,MESSRS BRABNER CHAFFE STREET#DX DX 14118,317775,"54,265.00"
Ministry of Justice,HM Courts Service,21-Feb-11,AU999-National Taxing Teams,226000-Court Costs,MESSRS NEUMANS LLP#DX 490,318091,"37,020.00"
Ministry of Justice,HM Courts Service,21-Feb-11,AU999-National Taxing Teams,226000-Court Costs,MESSRS HAMMONDS#DX 14347,317940,"261,836.00"
Ministry of Justice,HM Courts Service,21-Feb-11,AU999-National Taxing Teams,226000-Court Costs,MESSRS KELCEY & HALL#DX 78206,318003,"26,255.00"
Ministry of Justice,HM Courts Service,21-Feb-11,AU999-National Taxing Teams,226000-Court Costs,B C L BURTON COPELAND#DX 37981,1500890,"51,056.00"
Ministry of Justice,HM Courts Service,21-Feb-11,AU999-National Taxing Teams,311200-Criminal Legal Aid,MESSRS BUXTON RYAN & CO#DX47909,317790,"42,597.00"
Ministry of Justice,HM Courts Service,21-Feb-11,AU999-National Taxing Teams,311200-Criminal Legal Aid,SAUNDERS LAW PARTNERSHIP#DX 37995,1501279,"70,284.00"
Ministry of Justice,HM Courts Service,21-Feb-11,AU999-National Taxing Teams,311200-Criminal Legal Aid,MESSRS FARRELL MATHEWS & WEIR#DX 46758,1500979,"39,851.00"
Ministry of Justice,HM Courts Service,21-Feb-11,AU999-National Taxing Teams,311200-Criminal Legal Aid,MESSRS VHS FLETCHERS SOLICITORS#DX 10087,1501119,"72,907.00"
Ministry of Justice,HM Courts Service,21-Feb-11,AU999-National Taxing Teams,311200-Criminal Legal Aid,MESSRS KNIGHT POLSON#DX 34103,318010,"51,197.00"
Ministry of Justice,HM Courts Service,21-Feb-11,AU999-National Taxing Teams,311200-Criminal Legal Aid,MESSRS RICHARD NELSON SOLICITORS#NG9 2TA,1501068,"33,893.00"
Ministry of Justice,HM Courts Service,21-Feb-11,AU999-National Taxing Teams,311200-Criminal Legal Aid,MESSRS BIRNBERG PIERCE & PARTNERS#DX 57059,317763,"49,735.00"
Ministry of Justice,HM Courts Service,21-Feb-11,AU999-National Taxing Teams,311200-Criminal Legal Aid,FRISBY SOLICITORS LTD T/A FRISBY & CO#DX 14564,1500904,"59,157.00"
Ministry of Justice,HM Courts Service,21-Feb-11,AU999-National Taxing Teams,311200-Criminal Legal Aid,MR J MCNALLY#DX 175,318827,"39,592.00"
Ministry of Justice,HM Courts Service,21-Feb-11,AU999-National Taxing Teams,311200-Criminal Legal Aid,MISS SM HOWES#DX 489,318454,"41,725.00"
Ministry of Justice,HM Courts Service,21-Feb-11,AU999-National Taxing Teams,311200-Criminal Legal Aid,MS A SUMMERS#DX 360,319320,"46,453.00"
Ministry of Justice,HM Courts Service,21-Feb-11,AU999-National Taxing Teams,311200-Criminal Legal Aid,MR A CAMPBELL-TIECH#DX 175,318483,"77,851.00"
Ministry of Justice,HM Courts Service,21-Feb-11,AU999-National Taxing Teams,311200-Criminal Legal Aid,MR N HOFFMAN#DX 347,319021,"39,277.00"
Ministry of Justice,HM Courts Service,21-Feb-11,AU999-National Taxing Teams,311200-Criminal Legal Aid,MR JM BURTON#DX 162,1501209,"30,823.00"
Ministry of Justice,HM Courts Service,21-Feb-11,AU999-National Taxing Teams,311200-Criminal Legal Aid,MS K MAHMUTAJ#DX 478,319358,"29,754.00"
Ministry of Justice,HM Courts Service,21-Feb-11,AU999-National Taxing Teams,311200-Criminal Legal Aid,MR J SAMUELS#DX 728861,1501206,"41,577.00"
Ministry of Justice,HM Courts Service,21-Feb-11,AU999-National Taxing Teams,311200-Criminal Legal Aid,MISS R HILL#DX 440,318419,"34,573.00"
Ministry of Justice,HM Courts Service,21-Feb-11,AU999-National Taxing Teams,311200-Criminal Legal Aid,MISS P HARDING#DX 24,318406,"45,840.00"
Ministry of Justice,HM Courts Service,21-Feb-11,AU999-National Taxing Teams,311200-Criminal Legal Aid,MR J MCDERMOTT#DX 14223,318826,"26,050.00"
Ministry of Justice,HM Courts Service,21-Feb-11,AU999-National Taxing Teams,311200-Criminal Legal Aid,MR D FARRELL QC#DX 360 (8928533),318644,"81,758.00"
Ministry of Justice,HM Courts Service,21-Feb-11,AU999-National Taxing Teams,311200-Criminal Legal Aid,MR N LITHMAN QC#DX 17,319024,"85,318.00"
Ministry of Justice,HM Courts Service,21-Feb-11,AU999-National Taxing Teams,311200-Criminal Legal Aid,MR W HARBAGE QC#DX 360,319291,"81,148.00"
Ministry of Justice,HM Courts Service,21-Feb-11,AU999-National Taxing Teams,311200-Criminal Legal Aid,MISS M BAKER QC#DX 347,318391,"79,387.00"
Ministry of Justice,HM Courts Service,21-Feb-11,AU999-National Taxing Teams,311200-Criminal Legal Aid,MR A JEFFERIES QC#DX 175,318519,"76,362.00"
Ministry of Justice,HM Courts Service,21-Feb-11,AU999-National Taxing Teams,311200-Criminal Legal Aid,MR G HUSTON#DX 347,318712,"39,492.00"
Ministry of Justice,HM Courts Service,21-Feb-11,AU999-National Taxing Teams,311200-Criminal Legal Aid,MESSRS RAHMAN RAVELLI#DX 16001,1501063,"60,000.00"
Ministry of Justice,HM Courts Service,23-Feb-11,AV329-CP-Mag. Courts Operational Bus.sys,265000-IT & Telecommunications,HOME OFFICE IT,1505418,"47,278.00"
Ministry of Justice,HM Courts Service,23-Feb-11,BZ999-London Region,222001-Maintenance,SKANSEN INTERIORS LTD,1505853,"25,681.00"
Ministry of Justice,HM Courts Service,23-Feb-11,BZ999-London Region,222002-Other Property Costs,MITIE SECURITY LTD,1505616,"766,709.00"
Ministry of Justice,HM Courts Service,23-Feb-11,BZ999-London Region,222002-Other Property Costs,MITIE SECURITY LTD,1505616,"31,783.00"
Ministry of Justice,HM Courts Service,23-Feb-11,BZ999-London Region,222001-Maintenance,NORLAND MANAGED SERVICES LTD,1505658,"32,920.00"
Ministry of Justice,HM Courts Service,23-Feb-11,BZ999-London Region,532000-Tangible GBV - Additions,SIS SECURITY LTD,320171,"33,428.00"
Ministry of Justice,HM Courts Service,23-Feb-11,BZ999-London Region,532000-Tangible GBV - Additions,QUINN LONDON LTD,1505764,"313,684.00"
Ministry of Justice,HM Courts Service,23-Feb-11,CZ999-South East Region,222002-Other Property Costs,MITIE SECURITY LTD,1505616,"31,167.00"
Ministry of Justice,HM Courts Service,23-Feb-11,CZ999-South East Region,610400-Debtors <1 year - Prepayments & Accrued Income,OSPREY HOUSE (MANAGEMENT) LTD,1505686,"29,015.00"
Ministry of Justice,HM Courts Service,23-Feb-11,DZ999-South West Region,261000-Fuel and Utilities,BRITISH GAS BUSINESS,1505085,"33,262.00"
Ministry of Justice,HM Courts Service,23-Feb-11,DZ999-South West Region,222001-Maintenance,MITIE TECHNICAL FACILITIES MANAGEMENT LTD,1505618,"93,902.00"
Ministry of Justice,HM Courts Service,23-Feb-11,DZ999-South West Region,222001-Maintenance,NORLAND MANAGED SERVICES LTD,1505657,"38,874.00"
Ministry of Justice,HM Courts Service,23-Feb-11,DZ999-South West Region,262000-SCA Costs,SERVICES SUPPORT (AVON & SOMERSET) LTD,1505834,"788,420.00"
Ministry of Justice,HM Courts Service,23-Feb-11,DZ999-South West Region,532000-Tangible GBV - Additions,MITIE PROPERTY SERVICES (UK) LTD (MPS),1505615,"51,520.00"
Ministry of Justice,HM Courts Service,23-Feb-11,DZ999-South West Region,610400-Debtors <1 year - Prepayments & Accrued Income,BRISTOL CITY COUNCIL,1502786,"122,635.00"
Ministry of Justice,HM Courts Service,23-Feb-11,EZ999-Wales Region,222001-Maintenance,WYG MANAGEMENT SERVICES LTD,1506054,"34,011.00"
Ministry of Justice,HM Courts Service,23-Feb-11,EZ999-Wales Region,222001-Maintenance,GODFREY SYRETT LTD,1505336,"28,136.00"
Ministry of Justice,HM Courts Service,23-Feb-11,EZ999-Wales Region,532000-Tangible GBV - Additions,SPIE MATTHEW HALL LTD,1505879,"68,561.00"
Ministry of Justice,HM Courts Service,23-Feb-11,FZ999-Midlands Region,261000-Fuel and Utilities,BRITISH GAS BUSINESS,1505085,"57,419.00"
Ministry of Justice,HM Courts Service,23-Feb-11,FZ999-Midlands Region,262000-SCA Costs,H & W COURTS LIMITED,1505360,"557,194.00"
Ministry of Justice,HM Courts Service,23-Feb-11,FZ999-Midlands Region,532000-Tangible GBV - Additions,POINTER LTD,1505742,"100,479.00"
Ministry of Justice,HM Courts Service,23-Feb-11,FZ999-Midlands Region,532000-Tangible GBV - Additions,SITEC INTERIORS LTD,1505852,"81,091.00"
Ministry of Justice,HM Courts Service,23-Feb-11,FZ999-Midlands Region,532000-Tangible GBV - Additions,DH FATHERS LTD,1505235,"83,878.00"
Ministry of Justice,HM Courts Service,23-Feb-11,FZ999-Midlands Region,532000-Tangible GBV - Additions,DH FATHERS LTD,1505235,"66,424.00"
Ministry of Justice,HM Courts Service,23-Feb-11,FZ999-Midlands Region,532000-Tangible GBV - Additions,DH FATHERS LTD,1505235,"38,262.00"
Ministry of Justice,HM Courts Service,23-Feb-11,FZ999-Midlands Region,532000-Tangible GBV - Additions,AXIS ELEVATORS LTD,1505020,"51,448.00"
Ministry of Justice,HM Courts Service,23-Feb-11,GZ999-North West Region,222001-Maintenance,DTZ DEBENHAM TIE LEUNG,1505250,"32,465.00"
Ministry of Justice,HM Courts Service,23-Feb-11,GZ999-North West Region,532000-Tangible GBV - Additions,MITIE TECHNICAL FACILITIES MANAGEMENT LTD,1505617,"35,123.00"
Ministry of Justice,HM Courts Service,23-Feb-11,GZ999-North West Region,532000-Tangible GBV - Additions,MANCHESTER & CHESHIRE CONSTRUCTION CO LTD,1505570,"181,714.00"
Ministry of Justice,HM Courts Service,23-Feb-11,GZ999-North West Region,532000-Tangible GBV - Additions,ISG REGIONS LTD,1505451,"438,148.00"
Ministry of Justice,HM Courts Service,23-Feb-11,HZ999-North East and Yorkshire,222002-Other Property Costs,MITIE SECURITY LTD,1505616,"422,340.00"
Ministry of Justice,HM Courts Service,23-Feb-11,HZ999-North East and Yorkshire,222001-Maintenance,GARSIDE & LAYCOCK LTD,1505323,"25,732.00"
Ministry of Justice,HM Courts Service,23-Feb-11,HZ999-North East and Yorkshire,532000-Tangible GBV - Additions,SIS SECURITY LTD,1505850,"65,884.00"
Ministry of Justice,HM Courts Service,23-Feb-11,HZ999-North East and Yorkshire,532000-Tangible GBV - Additions,DIMESTAGE (CONSTRUCTION COMPANY) LTD (DCC),1505240,"58,727.00"
Ministry of Justice,HM Courts Service,23-Feb-11,IZ999-RCJ Group,261000-Fuel and Utilities,CORONA ENERGY,1505187,"25,607.00"
Ministry of Justice,HM Courts Service,24-Feb-11,FZ999-Midlands Region,710800-Creditor <1 yr - Third Party Monies,ONE TIME CAPS,322888,"33,776.00"
Ministry of Justice,HM Courts Service,24-Feb-11,FZ999-Midlands Region,710800-Creditor <1 yr - Third Party Monies,ONE TIME CAPS,323634,"29,220.00"
Ministry of Justice,HM Courts Service,24-Feb-11,FZ999-Midlands Region,710800-Creditor <1 yr - Third Party Monies,ONE TIME CAPS,321755,"45,618.00"
Ministry of Justice,HM Courts Service,25-Feb-11,AV322-CP Change Management SUPS,265000-IT & Telecommunications,ATOS ORIGIN IT SERVICES UK LTD,1507619,"30,960.00"
Ministry of Justice,HM Courts Service,25-Feb-11,AV322-CP Change Management SUPS,532000-Tangible GBV - Additions,LOGICA UK LTD,1507908,"181,998.00"
Ministry of Justice,HM Courts Service,25-Feb-11,AV329-CP-Mag. Courts Operational Bus.sys,265000-IT & Telecommunications,LOGICA UK LTD,1507908,"35,752.00"
Ministry of Justice,HM Courts Service,25-Feb-11,AV329-CP-Mag. Courts Operational Bus.sys,532000-Tangible GBV - Additions,LOGICA UK LTD,1507908,"72,028.00"
Ministry of Justice,HM Courts Service,25-Feb-11,AA499-HMCS Change Programme,265000-IT & Telecommunications,ATOS ORIGIN IT SERVICES UK LTD,1507619,"286,212.00"
Ministry of Justice,HM Courts Service,25-Feb-11,AG999-Estates Directorate HMCS HQ,222001-Maintenance,C WOOD & SON (LUTON) LTD,1507682,"46,271.00"
Ministry of Justice,HM Courts Service,25-Feb-11,AW999-Operations & Performance Dir.,265000-IT & Telecommunications,LOGICA UK LTD,1507908,"25,639.00"
Ministry of Justice,HM Courts Service,25-Feb-11,BZ999-London Region,261000-Fuel and Utilities,BRITISH GAS BUSINESS,1507663,"25,396.00"
Ministry of Justice,HM Courts Service,25-Feb-11,BZ999-London Region,532000-Tangible GBV - Additions,TURNER & TOWNSEND PROJECT MANAGEMENT,1508110,"78,159.00"
Ministry of Justice,HM Courts Service,25-Feb-11,BZ999-London Region,532000-Tangible GBV - Additions,EC HARRIS LLP,1507764,"42,000.00"
Ministry of Justice,HM Courts Service,25-Feb-11,BZ999-London Region,532000-Tangible GBV - Additions,SIS SECURITY LTD,323949,"46,790.00"
Ministry of Justice,HM Courts Service,25-Feb-11,BZ999-London Region,532000-Tangible GBV - Additions,SIS SECURITY LTD,323949,"31,722.00"
Ministry of Justice,HM Courts Service,25-Feb-11,CZ999-South East Region,261000-Fuel and Utilities,BRITISH GAS BUSINESS,1507664,"33,280.00"
Ministry of Justice,HM Courts Service,25-Feb-11,DZ999-South West Region,222001-Maintenance,KIER BUILDING SERVICES ENG,323869,"36,944.00"
Ministry of Justice,HM Courts Service,25-Feb-11,DZ999-South West Region,262000-SCA Costs,ENTERPRISE CIVIC BUILDINGS LIMITED,1507776,"312,469.00"
Ministry of Justice,HM Courts Service,25-Feb-11,EZ999-Wales Region,261000-Fuel and Utilities,BRITISH GAS BUSINESS,1507664,"34,958.00"
Ministry of Justice,HM Courts Service,25-Feb-11,EZ999-Wales Region,222001-Maintenance,WYG MANAGEMENT SERVICES LTD,1508159,"36,000.00"
Ministry of Justice,HM Courts Service,25-Feb-11,EZ999-Wales Region,222001-Maintenance,KIER BUILDING SERVICES ENG,323869,"50,104.00"
Ministry of Justice,HM Courts Service,25-Feb-11,EZ999-Wales Region,222001-Maintenance,KIER BUILDING SERVICES ENG,323869,"32,045.00"
Ministry of Justice,HM Courts Service,25-Feb-11,FZ999-Midlands Region,610400-Debtors <1 year - Prepayments & Accrued Income,WOLVERHAMPTON CITY COUNCIL,1508152,"85,005.00"
Ministry of Justice,HM Courts Service,25-Feb-11,GZ999-North West Region,222001-Maintenance,DRIVERS JONAS DELOITTE,1507757,"97,041.00"
Ministry of Justice,HM Courts Service,25-Feb-11,GZ999-North West Region,532000-Tangible GBV - Additions,CHUBB ELECTRONIC SECURITY LTD,1507704,"73,258.00"
Ministry of Justice,HM Courts Service,25-Feb-11,GZ999-North West Region,532000-Tangible GBV - Additions,J FLETCHER (ENGINEERS) LTD,1507862,"39,411.00"
Ministry of Justice,HM Courts Service,25-Feb-11,GZ999-North West Region,532000-Tangible GBV - Additions,CHUBB ELECTRONIC SECURITY LTD,1507705,"38,959.00"
Ministry of Justice,HM Courts Service,25-Feb-11,GZ999-North West Region,532000-Tangible GBV - Additions,RCL BUILDING SERVICES LTD,1508016,"292,631.00"
Ministry of Justice,HM Courts Service,25-Feb-11,GZ999-North West Region,532000-Tangible GBV - Additions,BASTION SECURITY INSTALLATIONS,1507638,"30,018.00"
Ministry of Justice,HM Courts Service,25-Feb-11,GZ999-North West Region,532000-Tangible GBV - Additions,J FLETCHER (ENGINEERS) LTD,1507862,"39,204.00"
Ministry of Justice,HM Courts Service,25-Feb-11,HZ999-North East and Yorkshire,222001-Maintenance,BAILEY MAINTENANCE LTD,1507626,"47,944.00"
Ministry of Justice,HM Courts Service,25-Feb-11,HZ999-North East and Yorkshire,532000-Tangible GBV - Additions,ALBERT INNES LTD,1507601,"119,525.00"
Ministry of Justice,HM Courts Service,25-Feb-11,HZ999-North East and Yorkshire,532000-Tangible GBV - Additions,MITIE TECHNICAL FACILITIES MANAGEMENT LTD,1507946,"103,144.00"
Ministry of Justice,HM Courts Service,25-Feb-11,IZ999-RCJ Group,226000-Court Costs,MESSRS R & M SOLICITORS LTD#200903715-B1,323891,"36,920.78"
Ministry of Justice,Ministry of Justice Headquarters,03-Feb-11,ZZ900-MoJ HQ,245000-Grants in Aid to NDPBs,LEGAL SERVICES COMMISSION,6268,"8,000,000.00"
Ministry of Justice,Ministry of Justice Headquarters,03-Feb-11,ZZ900-MoJ HQ,265000-IT & Telecommunications,LOGICA UK LTD,1040328,"45,091.00"
Ministry of Justice,Ministry of Justice Headquarters,03-Feb-11,ZZ900-MoJ HQ,223000-Other Expenditure,CONFIRMIT LTD,1040244,"29,346.00"
Ministry of Justice,Ministry of Justice Headquarters,03-Feb-11,ZZ900-MoJ HQ,266000-Judicial Costs,HAMMICKS LEGAL BOOKSHOPS,1040287,"40,128.00"
Ministry of Justice,Ministry of Justice Headquarters,03-Feb-11,ZZ900-MoJ HQ,266000-Judicial Costs,CALDER CONFERENCES LTD,1040224,"42,471.00"
Ministry of Justice,Ministry of Justice Headquarters,03-Feb-11,ZZ900-MoJ HQ,266000-Judicial Costs,CALDER CONFERENCES LTD,1040224,"45,490.00"
Ministry of Justice,Ministry of Justice Headquarters,03-Feb-11,ZZ900-MoJ HQ,266000-Judicial Costs,CALDER CONFERENCES LTD,1040224,"36,918.00"
Ministry of Justice,Ministry of Justice Headquarters,03-Feb-11,ZZ900-MoJ HQ,212001-Agency staff,CONCERTO CONSULTING,1040243,"27,265.00"
Ministry of Justice,Ministry of Justice Headquarters,03-Feb-11,ZZ900-MoJ HQ,261000-Fuel and Utilities,EDF ENERGY LTD,1040268,"58,776.00"
Ministry of Justice,Ministry of Justice Headquarters,03-Feb-11,ZZ900-MoJ HQ,212001-Agency staff,CAPGEMINI UK PLC,1040226,"27,143.00"
Ministry of Justice,Ministry of Justice Headquarters,03-Feb-11,ZZ900-MoJ HQ,212001-Agency staff,SELEX COMMUNICATIONS LTD,1040391,"52,416.00"
Ministry of Justice,Ministry of Justice Headquarters,03-Feb-11,ZZ900-MoJ HQ,265000-IT & Telecommunications,CACI LTD,1040223,"28,200.00"
Ministry of Justice,Ministry of Justice Headquarters,03-Feb-11,ZZ900-MoJ HQ,265000-IT & Telecommunications,FUJITSU SERVICES LTD,1040275,"519,077.00"
Ministry of Justice,Ministry of Justice Headquarters,03-Feb-11,ZZ900-MoJ HQ,265000-IT & Telecommunications,FUJITSU SERVICES LTD,1040275,"659,583.00"
Ministry of Justice,Ministry of Justice Headquarters,03-Feb-11,ZZ900-MoJ HQ,265000-IT & Telecommunications,FUJITSU SERVICES LTD,1040275,"129,769.00"
Ministry of Justice,Ministry of Justice Headquarters,03-Feb-11,ZZ900-MoJ HQ,265000-IT & Telecommunications,LOGICA UK LTD,1040328,"141,572.00"
Ministry of Justice,Ministry of Justice Headquarters,03-Feb-11,ZZ900-MoJ HQ,265000-IT & Telecommunications,ATOS ORIGIN IT SERVICES UK LTD,1040203,"1,789,555.00"
Ministry of Justice,Ministry of Justice Headquarters,03-Feb-11,ZZ900-MoJ HQ,532000-Tangible GBV - Additions,FUJITSU SERVICES LTD,1040275,"347,136.00"
Ministry of Justice,Ministry of Justice Headquarters,04-Feb-11,ZZ900-MoJ HQ,311100-Legal Aid,LEGAL SERVICES COMMISSION,6270,"81,200,000.00"
Ministry of Justice,Ministry of Justice Headquarters,04-Feb-11,ZZ900-MoJ HQ,710200-Creditors < 1 year - Trade & Other Creditors,COMPANY BARCLAYCARD CORPORATE,6269,"1,186,849.00"
Ministry of Justice,Ministry of Justice Headquarters,07-Feb-11,ZZ900-MoJ HQ,246000-Current Grants,THE PAROLE BOARD,6271,"1,000,000.00"
Ministry of Justice,Ministry of Justice Headquarters,07-Feb-11,ZZ900-MoJ HQ,245000-Grants in Aid to NDPBs,YOUTH JUSTICE BOARD FOR ENGLAND & WALES,6272,"61,000,000.00"
Ministry of Justice,Ministry of Justice Headquarters,07-Feb-11,ZZ900-MoJ HQ,223000-Other Expenditure,SWEET & MAXWELL LTD,1040681,"69,042.00"
Ministry of Justice,Ministry of Justice Headquarters,07-Feb-11,ZZ900-MoJ HQ,223000-Other Expenditure,SWEET & MAXWELL LTD,1040681,"65,414.00"
Ministry of Justice,Ministry of Justice Headquarters,07-Feb-11,ZZ900-MoJ HQ,223000-Other Expenditure,TNT UK LTD,1040692,"55,032.00"
Ministry of Justice,Ministry of Justice Headquarters,07-Feb-11,ZZ900-MoJ HQ,262000-SCA Costs,LIBERATA UK LTD,1040613,"29,565.00"
Ministry of Justice,Ministry of Justice Headquarters,07-Feb-11,ZZ900-MoJ HQ,263000-Other Contracted Out Services,CAPITA HARTSHEAD LTD,1040532,"52,666.00"
Ministry of Justice,Ministry of Justice Headquarters,07-Feb-11,ZZ900-MoJ HQ,222002-Other Property Costs,LANCASTER OFFICE CLEANING CO LTD,1040605,"110,448.00"
Ministry of Justice,Ministry of Justice Headquarters,07-Feb-11,ZZ900-MoJ HQ,265000-IT & Telecommunications,VODAFONE CORPORATE LTD,1040698,"26,721.00"
Ministry of Justice,Ministry of Justice Headquarters,07-Feb-11,ZZ900-MoJ HQ,265000-IT & Telecommunications,ATOS ORIGIN IT SERVICES UK LTD,1040516,"32,616.00"
Ministry of Justice,Ministry of Justice Headquarters,07-Feb-11,ZZ900-MoJ HQ,265000-IT & Telecommunications,ATOS ORIGIN IT SERVICES UK LTD,1040516,"1,118,730.00"
Ministry of Justice,Ministry of Justice Headquarters,07-Feb-11,ZZ900-MoJ HQ,265000-IT & Telecommunications,ATOS ORIGIN IT SERVICES UK LTD,1040516,"785,570.00"
Ministry of Justice,Ministry of Justice Headquarters,07-Feb-11,ZZ900-MoJ HQ,265000-IT & Telecommunications,ATOS ORIGIN IT SERVICES UK LTD,1040516,"106,733.00"
Ministry of Justice,Ministry of Justice Headquarters,07-Feb-11,ZZ900-MoJ HQ,265000-IT & Telecommunications,ATOS ORIGIN IT SERVICES UK LTD,1040516,"460,543.00"
Ministry of Justice,Ministry of Justice Headquarters,07-Feb-11,ZZ900-MoJ HQ,265000-IT & Telecommunications,ATOS ORIGIN IT SERVICES UK LTD,1040516,"189,000.00"
Ministry of Justice,Ministry of Justice Headquarters,07-Feb-11,ZZ900-MoJ HQ,265000-IT & Telecommunications,ATOS ORIGIN IT SERVICES UK LTD,1040516,"398,689.00"
Ministry of Justice,Ministry of Justice Headquarters,07-Feb-11,ZZ900-MoJ HQ,265000-IT & Telecommunications,ATOS ORIGIN IT SERVICES UK LTD,1040516,"104,610.00"
Ministry of Justice,Ministry of Justice Headquarters,07-Feb-11,ZZ900-MoJ HQ,265000-IT & Telecommunications,ATOS ORIGIN IT SERVICES UK LTD,1040516,"462,820.00"
Ministry of Justice,Ministry of Justice Headquarters,07-Feb-11,ZZ900-MoJ HQ,265000-IT & Telecommunications,ATOS ORIGIN IT SERVICES UK LTD,1040516,"70,015.00"
Ministry of Justice,Ministry of Justice Headquarters,07-Feb-11,ZZ900-MoJ HQ,264000-Consultancy,WEST YORKSHIRE POLICE AUTHORITY,1040704,"42,900.00"
Ministry of Justice,Ministry of Justice Headquarters,08-Feb-11,ZZ900-MoJ HQ,223000-Other Expenditure,COUNCIL OF EUROPE,13606,"72,803.00"
Ministry of Justice,Ministry of Justice Headquarters,10-Feb-11,ZZ900-MoJ HQ,311100-Legal Aid,LEGAL SERVICES COMMISSION,6273,"16,900,000.00"
Ministry of Justice,Ministry of Justice Headquarters,10-Feb-11,ZZ900-MoJ HQ,246000-Current Grants,REUNITE INTERNATIONAL,1040964,"32,000.00"
Ministry of Justice,Ministry of Justice Headquarters,10-Feb-11,ZZ900-MoJ HQ,265000-IT & Telecommunications,LOGICA UK LTD,1040914,"78,736.00"
Ministry of Justice,Ministry of Justice Headquarters,10-Feb-11,ZZ900-MoJ HQ,265000-IT & Telecommunications,LOGICA UK LTD,1040914,"94,683.00"
Ministry of Justice,Ministry of Justice Headquarters,10-Feb-11,ZZ900-MoJ HQ,223000-Other Expenditure,TNT UK LTD,1041000,"180,002.00"
Ministry of Justice,Ministry of Justice Headquarters,10-Feb-11,ZZ900-MoJ HQ,266000-Judicial Costs,CALDER CONFERENCES LTD,1040814,"33,769.00"
Ministry of Justice,Ministry of Justice Headquarters,10-Feb-11,ZZ900-MoJ HQ,262000-SCA Costs,LIBERATA UK LTD,1040910,"26,208.00"
Ministry of Justice,Ministry of Justice Headquarters,10-Feb-11,ZZ900-MoJ HQ,221000-Property Rent and Rates,CBRE CB RICHARD ELLIS,1040824,"57,436.00"
Ministry of Justice,Ministry of Justice Headquarters,10-Feb-11,ZZ900-MoJ HQ,261000-Fuel and Utilities,EDF ENERGY LTD,1040850,"56,639.00"
Ministry of Justice,Ministry of Justice Headquarters,10-Feb-11,ZZ900-MoJ HQ,222002-Other Property Costs,CARLISLE SECURITY SERVICES LTD,1040820,"123,270.00"
Ministry of Justice,Ministry of Justice Headquarters,10-Feb-11,ZZ900-MoJ HQ,222002-Other Property Costs,CARLISLE SECURITY SERVICES LTD,1040820,"40,691.00"
Ministry of Justice,Ministry of Justice Headquarters,10-Feb-11,ZZ900-MoJ HQ,262000-SCA Costs,LAND SECURITIES PROPERTIES LTD,1040906,"3,565,930.00"
Ministry of Justice,Ministry of Justice Headquarters,10-Feb-11,ZZ900-MoJ HQ,223001-Printing Postage and Office expenditure,LIBERATA UK LTD,1040910,"45,090.00"
Ministry of Justice,Ministry of Justice Headquarters,10-Feb-11,ZZ900-MoJ HQ,223001-Printing Postage and Office expenditure,LIBERATA UK LTD,1040910,"65,625.00"
Ministry of Justice,Ministry of Justice Headquarters,10-Feb-11,ZZ900-MoJ HQ,265000-IT & Telecommunications,STERIA LTD,1040984,"67,070.00"
Ministry of Justice,Ministry of Justice Headquarters,10-Feb-11,ZZ900-MoJ HQ,265000-IT & Telecommunications,LOGICA UK LTD,1040915,"43,830.00"
Ministry of Justice,Ministry of Justice Headquarters,10-Feb-11,ZZ900-MoJ HQ,265000-IT & Telecommunications,LOGICA UK LTD,1040915,"272,646.00"
Ministry of Justice,Ministry of Justice Headquarters,10-Feb-11,ZZ900-MoJ HQ,265000-IT & Telecommunications,LOGICA UK LTD,1040915,"38,099.00"
Ministry of Justice,Ministry of Justice Headquarters,10-Feb-11,ZZ900-MoJ HQ,265000-IT & Telecommunications,ATOS ORIGIN IT SERVICES UK LTD,1040795,"4,553,639.00"
Ministry of Justice,Ministry of Justice Headquarters,10-Feb-11,ZZ900-MoJ HQ,532000-Tangible GBV - Additions,STERIA LTD,1040984,"40,586.00"
Ministry of Justice,Ministry of Justice Headquarters,10-Feb-11,ZZ900-MoJ HQ,532000-Tangible GBV - Additions,STERIA LTD,1040984,"68,360.00"
Ministry of Justice,Ministry of Justice Headquarters,10-Feb-11,ZZ900-MoJ HQ,532000-Tangible GBV - Additions,STERIA LTD,1040984,"94,324.00"
Ministry of Justice,Ministry of Justice Headquarters,10-Feb-11,ZZ900-MoJ HQ,532000-Tangible GBV - Additions,FUJITSU SERVICES LTD,1040868,"181,330.00"
Ministry of Justice,Ministry of Justice Headquarters,10-Feb-11,ZZ900-MoJ HQ,265000-IT & Telecommunications,ATOS ORIGIN IT SERVICES UK LTD,1040795,"37,378.00"
Ministry of Justice,Ministry of Justice Headquarters,11-Feb-11,ZZ900-MoJ HQ,246000-Current Grants,EAVES HOUSING FOR WOMEN#RB31110126,1041033,"462,500.00"
Ministry of Justice,Ministry of Justice Headquarters,14-Feb-11,ZZ900-MoJ HQ,223000-Other Expenditure,ARVAL UK LTD,1041053,"37,253.00"
Ministry of Justice,Ministry of Justice Headquarters,14-Feb-11,ZZ900-MoJ HQ,222002-Other Property Costs,CALIBRE CONSULTANCY LTD,1041078,"31,285.00"
Ministry of Justice,Ministry of Justice Headquarters,14-Feb-11,ZZ900-MoJ HQ,265000-IT & Telecommunications,HEWLETT PACKARD LTD,1041139,"225,904.00"
Ministry of Justice,Ministry of Justice Headquarters,14-Feb-11,ZZ900-MoJ HQ,265000-IT & Telecommunications,VP TREEN & ASSOCIATES,1041237,"73,500.00"
Ministry of Justice,Ministry of Justice Headquarters,14-Feb-11,ZZ900-MoJ HQ,265000-IT & Telecommunications,INSIGHT DIRECT (UK) LTD,1041151,"39,055.00"
Ministry of Justice,Ministry of Justice Headquarters,14-Feb-11,ZZ900-MoJ HQ,265000-IT & Telecommunications,LOGICA UK LTD,1041167,"68,099.00"
Ministry of Justice,Ministry of Justice Headquarters,14-Feb-11,ZZ900-MoJ HQ,265000-IT & Telecommunications,LOGICA UK LTD,1041167,"235,692.00"
Ministry of Justice,Ministry of Justice Headquarters,14-Feb-11,ZZ900-MoJ HQ,265000-IT & Telecommunications,LOGICA UK LTD,1041167,"64,521.00"
Ministry of Justice,Ministry of Justice Headquarters,14-Feb-11,ZZ900-MoJ HQ,265000-IT & Telecommunications,LOGICA UK LTD,1041166,"31,684.00"
Ministry of Justice,Ministry of Justice Headquarters,14-Feb-11,ZZ900-MoJ HQ,265000-IT & Telecommunications,LOGICA UK LTD,1041167,"28,578.00"
Ministry of Justice,Ministry of Justice Headquarters,14-Feb-11,ZZ900-MoJ HQ,265000-IT & Telecommunications,LOGICA UK LTD,1041167,"482,614.00"
Ministry of Justice,Ministry of Justice Headquarters,14-Feb-11,ZZ900-MoJ HQ,265000-IT & Telecommunications,LOGICA UK LTD,1041167,"37,267.00"
Ministry of Justice,Ministry of Justice Headquarters,14-Feb-11,ZZ900-MoJ HQ,265000-IT & Telecommunications,LOGICA UK LTD,1041167,"41,767.00"
Ministry of Justice,Ministry of Justice Headquarters,14-Feb-11,ZZ900-MoJ HQ,265000-IT & Telecommunications,LOGICA UK LTD,1041167,"42,773.00"
Ministry of Justice,Ministry of Justice Headquarters,14-Feb-11,ZZ900-MoJ HQ,265000-IT & Telecommunications,LOGICA UK LTD,1041166,"32,328.00"
Ministry of Justice,Ministry of Justice Headquarters,14-Feb-11,ZZ900-MoJ HQ,265000-IT & Telecommunications,LOGICA UK LTD,1041167,"53,578.00"
Ministry of Justice,Ministry of Justice Headquarters,14-Feb-11,ZZ900-MoJ HQ,265000-IT & Telecommunications,LOGICA UK LTD,1041167,"58,276.00"
Ministry of Justice,Ministry of Justice Headquarters,14-Feb-11,ZZ900-MoJ HQ,265000-IT & Telecommunications,LOGICA UK LTD,1041167,"540,000.00"
Ministry of Justice,Ministry of Justice Headquarters,14-Feb-11,ZZ900-MoJ HQ,265000-IT & Telecommunications,LOGICA UK LTD,1041167,"61,220.00"
Ministry of Justice,Ministry of Justice Headquarters,14-Feb-11,ZZ900-MoJ HQ,265000-IT & Telecommunications,LOGICA UK LTD,1041167,"176,286.00"
Ministry of Justice,Ministry of Justice Headquarters,14-Feb-11,ZZ900-MoJ HQ,265000-IT & Telecommunications,LOGICA UK LTD,1041167,"35,471.00"
Ministry of Justice,Ministry of Justice Headquarters,14-Feb-11,ZZ900-MoJ HQ,265000-IT & Telecommunications,LOGICA UK LTD,1041167,"193,631.00"
Ministry of Justice,Ministry of Justice Headquarters,14-Feb-11,ZZ900-MoJ HQ,265000-IT & Telecommunications,LOGICA UK LTD,1041166,"29,695.00"
Ministry of Justice,Ministry of Justice Headquarters,16-Feb-11,ZZ900-MoJ HQ,246000-Current Grants,CRIMINAL CASES REVIEW COMMISSION,6274,"500,000.00"
Ministry of Justice,Ministry of Justice Headquarters,17-Feb-11,ZZ900-MoJ HQ,311100-Legal Aid,LEGAL SERVICES COMMISSION,6275,"24,600,000.00"
Ministry of Justice,Ministry of Justice Headquarters,17-Feb-11,ZZ900-MoJ HQ,263000-Other Contracted Out Services,STAFFORDSHIRE COUNTY COUNCIL,1041645,"174,234.00"
Ministry of Justice,Ministry of Justice Headquarters,17-Feb-11,ZZ900-MoJ HQ,265000-IT & Telecommunications,ATOS ORIGIN IT SERVICES UK LTD T/A ATOS HEALTHCARE,1041357,"66,622.00"
Ministry of Justice,Ministry of Justice Headquarters,17-Feb-11,ZZ900-MoJ HQ,223000-Other Expenditure,HOME OFFICE,1041502,"522,228.00"
Ministry of Justice,Ministry of Justice Headquarters,17-Feb-11,ZZ900-MoJ HQ,221000-Property Rent and Rates,BNP PARIBAS REAL ESTATE,1041376,"60,199.00"
Ministry of Justice,Ministry of Justice Headquarters,17-Feb-11,ZZ900-MoJ HQ,222001-Maintenance,M J FERGUSON LTD,1041547,"66,000.00"
Ministry of Justice,Ministry of Justice Headquarters,17-Feb-11,ZZ900-MoJ HQ,222002-Other Property Costs,CALIBRE CONSULTANCY LTD,1041399,"29,897.00"
Ministry of Justice,Ministry of Justice Headquarters,17-Feb-11,ZZ900-MoJ HQ,212001-Agency staff,CAPGEMINI UK PLC,1041400,"26,400.00"
Ministry of Justice,Ministry of Justice Headquarters,17-Feb-11,ZZ900-MoJ HQ,222002-Other Property Costs,CABLE & WIRELESS,1041396,"48,026.00"
Ministry of Justice,Ministry of Justice Headquarters,17-Feb-11,ZZ900-MoJ HQ,265000-IT & Telecommunications,CABLE & WIRELESS,1041396,"37,375.00"
Ministry of Justice,Ministry of Justice Headquarters,17-Feb-11,ZZ900-MoJ HQ,265000-IT & Telecommunications,CABLE & WIRELESS,1041396,"57,688.00"
Ministry of Justice,Ministry of Justice Headquarters,17-Feb-11,ZZ900-MoJ HQ,265000-IT & Telecommunications,STERIA LTD,1041649,"263,331.00"
Ministry of Justice,Ministry of Justice Headquarters,17-Feb-11,ZZ900-MoJ HQ,265000-IT & Telecommunications,ATOS ORIGIN IT SERVICES UK LTD,1041356,"125,281.00"
Ministry of Justice,Ministry of Justice Headquarters,17-Feb-11,ZZ900-MoJ HQ,265000-IT & Telecommunications,ATOS ORIGIN IT SERVICES UK LTD,1041356,"87,000.00"
Ministry of Justice,Ministry of Justice Headquarters,17-Feb-11,ZZ900-MoJ HQ,532000-Tangible GBV - Additions,STERIA LTD,1041649,"88,657.00"
Ministry of Justice,Ministry of Justice Headquarters,18-Feb-11,ZZ900-MoJ HQ,710100-Creditors < 1 year - Other Taxation & Social Security,HMRC,1056,"1,979,682.00"
Ministry of Justice,Ministry of Justice Headquarters,18-Feb-11,ZZ900-MoJ HQ,710100-Creditors < 1 year - Other Taxation & Social Security,HMRC,1062,"94,875.00"
Ministry of Justice,Ministry of Justice Headquarters,18-Feb-11,ZZ900-MoJ HQ,710100-Creditors < 1 year - Other Taxation & Social Security,HMRC,1063,"59,307.00"
Ministry of Justice,Ministry of Justice Headquarters,18-Feb-11,ZZ900-MoJ HQ,710100-Creditors < 1 year - Other Taxation & Social Security,HMRC,1057,"1,514,016.00"
Ministry of Justice,Ministry of Justice Headquarters,18-Feb-11,ZZ900-MoJ HQ,811000-Interdepartmental - MoJHQ,HMRC,1061,"113,483.00"
Ministry of Justice,Ministry of Justice Headquarters,18-Feb-11,ZZ900-MoJ HQ,811000-Interdepartmental - MoJHQ,HMRC,1060,"125,191.00"
Ministry of Justice,Ministry of Justice Headquarters,21-Feb-11,ZZ900-MoJ HQ,223000-Other Expenditure,SWEET & MAXWELL LTD,1041896,"42,464.00"
Ministry of Justice,Ministry of Justice Headquarters,21-Feb-11,ZZ900-MoJ HQ,223000-Other Expenditure,SWEET & MAXWELL LTD,1041896,"66,806.00"
Ministry of Justice,Ministry of Justice Headquarters,21-Feb-11,ZZ900-MoJ HQ,266000-Judicial Costs,HAMMICKS LEGAL BOOKSHOPS,1041800,"32,872.00"
Ministry of Justice,Ministry of Justice Headquarters,21-Feb-11,ZZ900-MoJ HQ,266000-Judicial Costs,HAMMICKS LEGAL BOOKSHOPS,1041800,"82,308.00"
Ministry of Justice,Ministry of Justice Headquarters,21-Feb-11,ZZ900-MoJ HQ,266000-Judicial Costs,HAMMICKS LEGAL BOOKSHOPS,1041800,"44,655.00"
Ministry of Justice,Ministry of Justice Headquarters,21-Feb-11,ZZ900-MoJ HQ,266000-Judicial Costs,CALDER CONFERENCES LTD,1041748,"36,791.00"
Ministry of Justice,Ministry of Justice Headquarters,21-Feb-11,ZZ900-MoJ HQ,262000-SCA Costs,LIBERATA UK LTD,1041834,"1,359,239.00"
Ministry of Justice,Ministry of Justice Headquarters,21-Feb-11,ZZ900-MoJ HQ,223000-Other Expenditure,ARVAL UK LTD,1041724,"31,693.00"
Ministry of Justice,Ministry of Justice Headquarters,21-Feb-11,ZZ900-MoJ HQ,532000-Tangible GBV - Additions,HM PRISON SERVICE,1041807,"608,787.00"
Ministry of Justice,Ministry of Justice Headquarters,21-Feb-11,ZZ900-MoJ HQ,265000-IT & Telecommunications,FUJITSU SERVICES LTD,1041785,"129,769.00"
Ministry of Justice,Ministry of Justice Headquarters,21-Feb-11,ZZ900-MoJ HQ,265000-IT & Telecommunications,ATOS ORIGIN IT SERVICES UK LTD,1041726,"78,944.00"
Ministry of Justice,Ministry of Justice Headquarters,21-Feb-11,ZZ900-MoJ HQ,532000-Tangible GBV - Additions,ATOS ORIGIN IT SERVICES UK LTD,1041726,"57,660.00"
Ministry of Justice,Ministry of Justice Headquarters,21-Feb-11,ZZ900-MoJ HQ,532000-Tangible GBV - Additions,FUJITSU SERVICES LTD,1041785,"114,966.00"
Ministry of Justice,Ministry of Justice Headquarters,21-Feb-11,ZZ900-MoJ HQ,734000-Provisions - Utilised in year,HMRC#NI10000002,1041858,"226,299.76"
Ministry of Justice,Ministry of Justice Headquarters,21-Feb-11,ZZ900-MoJ HQ,611000-Debtors <1 year - Other Debtors,CAPITA CIVIL SUPERANNUATION,1041715,"48,314.00"
Ministry of Justice,Ministry of Justice Headquarters,24-Feb-11,ZZ900-MoJ HQ,311100-Legal Aid,LEGAL SERVICES COMMISSION,6277,"28,700,000.00"
Ministry of Justice,Ministry of Justice Headquarters,24-Feb-11,ZZ900-MoJ HQ,246000-Current Grants,DEPARTMENT FOR EDUCATION,1042118,"17,363,800.00"
Ministry of Justice,Ministry of Justice Headquarters,24-Feb-11,ZZ900-MoJ HQ,266000-Judicial Costs,HAMMICKS LEGAL BOOKSHOPS,1042165,"353,931.00"
Ministry of Justice,Ministry of Justice Headquarters,24-Feb-11,ZZ900-MoJ HQ,266000-Judicial Costs,HAMMICKS LEGAL BOOKSHOPS,1042165,"101,111.00"
Ministry of Justice,Ministry of Justice Headquarters,24-Feb-11,ZZ900-MoJ HQ,262000-SCA Costs,LIBERATA UK LTD,1042218,"309,054.00"
Ministry of Justice,Ministry of Justice Headquarters,24-Feb-11,ZZ900-MoJ HQ,222001-Maintenance,M J FERGUSON LTD,1042228,"201,066.00"
Ministry of Justice,Ministry of Justice Headquarters,24-Feb-11,ZZ900-MoJ HQ,222001-Maintenance,ASSOCIATED SERVICES (ESSEX) LTD,1042062,"105,977.00"
Ministry of Justice,Ministry of Justice Headquarters,24-Feb-11,ZZ900-MoJ HQ,212001-Agency staff,CAPGEMINI UK PLC,1042088,"28,435.00"
Ministry of Justice,Ministry of Justice Headquarters,24-Feb-11,ZZ900-MoJ HQ,265000-IT & Telecommunications,STERIA LTD,1042318,"236,989.00"
Ministry of Justice,Ministry of Justice Headquarters,24-Feb-11,ZZ900-MoJ HQ,265000-IT & Telecommunications,STERIA LTD,1042318,"52,529.00"
Ministry of Justice,Ministry of Justice Headquarters,24-Feb-11,ZZ900-MoJ HQ,265000-IT & Telecommunications,CABLE & WIRELESS,1042084,"238,963.00"
Ministry of Justice,Ministry of Justice Headquarters,24-Feb-11,ZZ900-MoJ HQ,265000-IT & Telecommunications,LOGICA UK LTD,1042224,"45,902.00"
Ministry of Justice,Ministry of Justice Headquarters,24-Feb-11,ZZ900-MoJ HQ,265000-IT & Telecommunications,ATOS ORIGIN IT SERVICES UK LTD,1042064,"953,877.00"
Ministry of Justice,Ministry of Justice Headquarters,24-Feb-11,ZZ900-MoJ HQ,265000-IT & Telecommunications,ATOS ORIGIN IT SERVICES UK LTD,1042064,"35,072.00"
Ministry of Justice,Ministry of Justice Headquarters,24-Feb-11,ZZ900-MoJ HQ,265000-IT & Telecommunications,ATOS ORIGIN IT SERVICES UK LTD,1042064,"25,981.00"
Ministry of Justice,Ministry of Justice Headquarters,24-Feb-11,ZZ900-MoJ HQ,265000-IT & Telecommunications,ATOS ORIGIN IT SERVICES UK LTD,1042064,"36,138.00"
Ministry of Justice,Ministry of Justice Headquarters,24-Feb-11,ZZ900-MoJ HQ,265000-IT & Telecommunications,ATOS ORIGIN IT SERVICES UK LTD,1042064,"57,053.00"
Ministry of Justice,Ministry of Justice Headquarters,24-Feb-11,ZZ900-MoJ HQ,265000-IT & Telecommunications,ATOS ORIGIN IT SERVICES UK LTD,1042064,"44,352.00"
Ministry of Justice,Ministry of Justice Headquarters,24-Feb-11,ZZ900-MoJ HQ,265000-IT & Telecommunications,ATOS ORIGIN IT SERVICES UK LTD,1042064,"360,002.00"
Ministry of Justice,Ministry of Justice Headquarters,24-Feb-11,ZZ900-MoJ HQ,265000-IT & Telecommunications,ATOS ORIGIN IT SERVICES UK LTD,1042064,"154,985.00"
Ministry of Justice,Ministry of Justice Headquarters,24-Feb-11,ZZ900-MoJ HQ,532000-Tangible GBV - Additions,STERIA LTD,1042318,"30,756.00"
Ministry of Justice,Ministry of Justice Headquarters,24-Feb-11,ZZ900-MoJ HQ,532000-Tangible GBV - Additions,STERIA LTD,1042318,"84,680.00"
Ministry of Justice,Ministry of Justice Headquarters,24-Feb-11,ZZ900-MoJ HQ,532000-Tangible GBV - Additions,STERIA LTD,1042318,"81,226.00"
Ministry of Justice,Ministry of Justice Headquarters,24-Feb-11,ZZ900-MoJ HQ,532000-Tangible GBV - Additions,CABLE & WIRELESS,1042084,"205,011.00"
Ministry of Justice,Ministry of Justice Headquarters,24-Feb-11,ZZ900-MoJ HQ,245000-Grants in Aid to NDPBs,INFORMATION COMMISSIONER (ICO),1042187,"$30,000.00 "
Ministry of Justice,Ministry of Justice Headquarters,25-Feb-11,ZZ900-MoJ HQ,631000-Bank,SOUTH YORKSHIRE PROBATION TRUST#WW00010147,16061,"43,391.67"
Ministry of Justice,Ministry of Justice Headquarters,28-Feb-11,ZZ900-MoJ HQ,262000-SCA Costs,NATIONAL SAVINGS & INVESTMENTS,1042556,"65,073.00"
Ministry of Justice,Ministry of Justice Headquarters,28-Feb-11,ZZ900-MoJ HQ,262000-SCA Costs,NATIONAL SAVINGS & INVESTMENTS,1042556,"321,238.00"
Ministry of Justice,Ministry of Justice Headquarters,28-Feb-11,ZZ900-MoJ HQ,262000-SCA Costs,NATIONAL SAVINGS & INVESTMENTS,1042556,"181,608.00"
Ministry of Justice,Ministry of Justice Headquarters,28-Feb-11,ZZ900-MoJ HQ,262000-SCA Costs,NATIONAL SAVINGS & INVESTMENTS,1042556,"188,711.00"
Ministry of Justice,Ministry of Justice Headquarters,28-Feb-11,ZZ900-MoJ HQ,223000-Other Expenditure,TNT UK LTD,1042632,"80,435.00"
Ministry of Justice,Ministry of Justice Headquarters,28-Feb-11,ZZ900-MoJ HQ,266000-Judicial Costs,CALDER CONFERENCES LTD,1042449,"39,653.00"
Ministry of Justice,Ministry of Justice Headquarters,28-Feb-11,ZZ900-MoJ HQ,532000-Tangible GBV - Additions,ATOS ORIGIN IT SERVICES UK LTD,1042418,"48,088.00"
Ministry of Justice,Ministry of Justice Headquarters,28-Feb-11,ZZ900-MoJ HQ,212001-Agency staff,ACTICA CONSULTING LTD,1042411,"25,830.00"
Ministry of Justice,Ministry of Justice Headquarters,28-Feb-11,ZZ900-MoJ HQ,212001-Agency staff,ACTICA CONSULTING LTD,1042411,"25,200.00"
Ministry of Justice,Ministry of Justice Headquarters,28-Feb-11,ZZ900-MoJ HQ,265000-IT & Telecommunications,HOME OFFICE,1042502,"63,949.00"
Ministry of Justice,Ministry of Justice Headquarters,28-Feb-11,ZZ900-MoJ HQ,265000-IT & Telecommunications,ATOS ORIGIN IT SERVICES UK LTD,1042418,"30,243.00"
Ministry of Justice,Ministry of Justice Headquarters,28-Feb-11,ZZ900-MoJ HQ,265000-IT & Telecommunications,ATOS ORIGIN IT SERVICES UK LTD,1042418,"56,404.00"
Ministry of Justice,Ministry of Justice Headquarters,28-Feb-11,ZZ900-MoJ HQ,265000-IT & Telecommunications,ATOS ORIGIN IT SERVICES UK LTD,1042418,"56,786.00"
Ministry of Justice,Ministry of Justice Headquarters,28-Feb-11,ZZ900-MoJ HQ,265000-IT & Telecommunications,ATOS ORIGIN IT SERVICES UK LTD,1042418,"38,443.00"
Ministry of Justice,Ministry of Justice Headquarters,28-Feb-11,ZZ900-MoJ HQ,265000-IT & Telecommunications,ATOS ORIGIN IT SERVICES UK LTD,1042418,"31,392.00"
Ministry of Justice,Ministry of Justice Headquarters,28-Feb-11,ZZ900-MoJ HQ,631000-Bank,HOME OFFICE,1042502,"352,220.00"
Ministry of Justice,Tribunals Service,01-Feb-11,TR120-Corporate,222002-Other Property Costs,MITIE SECURITY LTD,1063898,"29,501.00"
Ministry of Justice,Tribunals Service,01-Feb-11,TR160-Operational Support,223000-Other Expenditure,CALDER CONFERENCES LTD,1063803,"35,515.00"
Ministry of Justice,Tribunals Service,01-Feb-11,TR160-Operational Support,223000-Other Expenditure,CALDER CONFERENCES LTD,1063803,"25,171.00"
Ministry of Justice,Tribunals Service,04-Feb-11,TR140-Finance & Resources (Estates),222002-Other Property Costs,DEPARTMENT FOR WORK & PENSIONS (DWP),1064318,"51,218.00"
Ministry of Justice,Tribunals Service,08-Feb-11,TR190-Regional North,221000-Property Rent and Rates,BIS (DEPARTMENT OF BUSINESS INNOVATION & SKILLS),1065053,"40,260.00"
Ministry of Justice,Tribunals Service,11-Feb-11,TR120-Corporate,223001-Printing Postage and Office expenditure,ROYAL MAIL GROUP PLC,1065999,"259,557.00"
Ministry of Justice,Tribunals Service,11-Feb-11,TR130-Finance & Resources,211000-Judicial Salaries - Salaried,JUDICIAL PENSIONS SCHEME,1027,"1,328,637.00"
Ministry of Justice,Tribunals Service,11-Feb-11,TR160-Operational Support,223000-Other Expenditure,CALDER CONFERENCES LTD,1065607,"27,320.00"
Ministry of Justice,Tribunals Service,11-Feb-11,TR200-Regional South,222001-Maintenance,VISION HAMPSHIRE LTD,1066045,"82,399.00"
Ministry of Justice,Tribunals Service,15-Feb-11,TB140-Change Programme,265000-IT & Telecommunications,DELL TECHNOLOGY & SOLUTIONS LTD,1066412,"112,451.00"
Ministry of Justice,Tribunals Service,15-Feb-11,TB140-Change Programme,265000-IT & Telecommunications,DELL TECHNOLOGY & SOLUTIONS LTD,1066412,"140,507.00"
Ministry of Justice,Tribunals Service,15-Feb-11,TR120-Corporate,222002-Other Property Costs,MITIE SECURITY LTD,1066732,"170,193.00"
Ministry of Justice,Tribunals Service,15-Feb-11,TR140-Finance & Resources (Estates),222001-Maintenance,MITIE TECHNICAL FACILITIES MANAGEMENT LTD,1066733,"26,895.00"
Ministry of Justice,Tribunals Service,15-Feb-11,TR140-Finance & Resources (Estates),222001-Maintenance,MITIE TECHNICAL FACILITIES MANAGEMENT LTD,1066733,"26,895.00"
Ministry of Justice,Tribunals Service,18-Feb-11,TR120-Corporate,222002-Other Property Costs,REGENT OFFICE CARE LTD,1068103,"27,279.00"
Ministry of Justice,Tribunals Service,18-Feb-11,TR140-Finance & Resources (Estates),222002-Other Property Costs,DEPARTMENT FOR WORK & PENSIONS (DWP),1067718,"854,863.00"
Ministry of Justice,Tribunals Service,18-Feb-11,TR160-Operational Support,223000-Other Expenditure,CALDER CONFERENCES LTD,1067696,"34,267.00"
Ministry of Justice,Tribunals Service,18-Feb-11,WW000-Balance Sheet,710100-Creditors < 1 year - Other Taxation & Social Security,HMRC,1028,"2,108,458.00"
Ministry of Justice,Tribunals Service,18-Feb-11,WW000-Balance Sheet,710100-Creditors < 1 year - Other Taxation & Social Security,HMRC,1031,"293,148.00"
Ministry of Justice,Tribunals Service,18-Feb-11,WW000-Balance Sheet,710100-Creditors < 1 year - Other Taxation & Social Security,HMRC,1033,"1,206,604.00"
Ministry of Justice,Tribunals Service,18-Feb-11,WW000-Balance Sheet,710100-Creditors < 1 year - Other Taxation & Social Security,HMRC,1030,"174,998.00"
Ministry of Justice,Tribunals Service,18-Feb-11,WW000-Balance Sheet,710100-Creditors < 1 year - Other Taxation & Social Security,HMRC,1032,"634,998.00"
Ministry of Justice,Tribunals Service,18-Feb-11,WW000-Balance Sheet,710100-Creditors < 1 year - Other Taxation & Social Security,HMRC,1029,"1,288,613.00"
Ministry of Justice,Tribunals Service,25-Feb-11,TR160-Operational Support,223000-Other Expenditure,CALDER CONFERENCES LTD,1068798,"32,116.00"
Ministry of Justice,Tribunals Service,25-Feb-11,TR160-Operational Support,223000-Other Expenditure,CALDER CONFERENCES LTD,1068798,"43,940.00"
Ministry of Justice,Tribunals Service,25-Feb-11,TR200-Regional South,222002-Other Property Costs,SANDERSON WEATHERALL,1069232,"29,378.00"
